Workbook

Sheet AER NRs (hidden)
B1: AER NAMED RANGES
B3: DROP DOWN SELECTORS USED IN WORKBOOKS
B5: COVER SHEET | C5: dms_DataQuality_List | D5: dms_Confid_status_List
C6: -- select -- | D6: -- select --
C7: Actual | D7: Public
C8: Estimate | D8: Confidential
C9: Consolidated
C12: For all files either AER or business needs to be able to specify the type of submission | D12: For PTRM & RFM templates we must provide a choice in case they change their form of control - otherwise it is drawn from the business specific lookup table above.
C13: dms_SourceList | D13: dms_FormControl_Choices
C14: -- select -- | D14: Revenue cap
C15: After appeal | D15: Revenue yield
C16: Draft decision | D16: Weighted average price cap
C17: Final decision
C18: PTRM update 1
C19: PTRM update 2
C20: PTRM update 3
C21: PTRM update 4
C22: PTRM update 5
C23: PTRM update 6
C24: PTRM update 7
C25: Regulatory proposal
C26: Reporting
C27: Revised regulatory proposal
K30: This is used to create an image to insert on 6.3 STPIS sheet - not for dropdown lists. | N30: GAS
B31: CA & RESET RINS DNSP | C31: dms_DNSP_020301_SubstationType | D31: dms_DNSP_020301_ProjectType | E31: dms_DNSP_020301_ProjectTrigger | F31: dms_DNSP_020302_ProjectType | G31: dms_DNSP_020302_ProjectTrigger | H31: dms_STPIS_Exclusion_List | I31: dms_Reason_Interruption | J31: dms_Reason_Interruption_Detailed | K31: Reason for interruption | N31: dms_N0205_AssetType
C32: Subtransmission substation | D32: New substation establishment | E32: Demand growth | F32: New line on new route - single circuit | G32: Demand growth | H32: Weather | I32: Animal | J32: Animal impact | K32: Animal | L32: Animal impact | N32: Cast Iron
C33: Zone substation | D33: Substation upgrade - capacity | E33: Voltage issues | F33: New line on new route - dual circuit | G33: Voltage issues | H33: Equipment failure | I33: Asset failure | J33: Animal nesting/burrowing, etc and other | L33: Animal nesting/burrowing, etc and other | N33: PVC
C34: Switching station | D34: Substation upgrade - voltage | E34: Reactive power issue | F34: New line on new route - other | G34: Reactive power issue | H34: Operational error | I34: Other | J34: Other | L34: Other | N34: Polyamide
C35: Other | D35: Other | E35: Fault level issues | F35: Line rebuild over existing route - single circuit | G35: Fault level issues | H35: Vegetation | I35: Overloads | J35: LV | K35: Asset failure | L35: LV | N35: High density polyethylene (80)
E36: Safety | F36: Line rebuild over existing route - dual circuit | G36: Net market benefit | H36: Animals | I36: Planned | J36: Distribution substation | L36: Distribution substation | N36: High density polyethylene (100)
E37: Environment | F37: Reconductor - Single circuit | G37: Safety | H37: Third party impacts | I37: Network business | J37: HV | L37: HV | N37: High density polyethylene (250)
E38: Other | F38: Reconductor - Dual circuit | G38: Environment | H38: Transmission failure | I38: Third party | J38: Zone substation | L38: Zone substation | N38: High density polyethylene (575)
F39: Reconductor - Other | G39: Other | H39: Load shedding | I39: Unknown | J39: Subtransmission | L39: Subtransmission | N39: Medium density polyethylene
F40: Line upgrade - raising/retensoring | H40: Inter-distributor connection failure | I40: Vegetation | J40: insert description of 'other' | K40: Other | L40: insert description of 'other' | N40: Unprotected steel
F41: Line upgrade - voltage upgrade | H41: Other | I41: Weather | J41: Network error | K41: Overloads | N41: Protected steel
F42: Line upgrade - capacity | I42: 2 - STPIS Exclusion (3.3)(a) | J42: Switching and protection error | K42: Planned | N42: Other
F43: String spare circuit | I43: 3 - STPIS Exclusion (3.3)(a) | J43: Fire | K43: Network business | L43: Network error
F44: Other | I44: 4 - STPIS Exclusion (3.3)(a) | J44: Other | L44: Switching and protection error
I45: 5 - STPIS Exclusion (3.3)(a) | J45: Dig-in | K45: Third party | L45: Fire
I46: 6 - STPIS Exclusion (3.3)(a) | J46: Unauthorised access | L46: Other
I47: 7 - STPIS Exclusion (3.3)(a) | J47: Vehicle impact | L47: Dig-in
J48: Unknown | L48: Unauthorised access
J49: Blow-in/Fall-in - NSP responsibility | L49: Vehicle impact
J50: Grow-in - NSP responsibility | K50: Unknown | L50: Unknown
J51: Blow-in/Fall-in - Other responsible party | K51: Vegetation | L51: Blow-in/Fall-in - NSP responsibility
J52: Grow-in - Other responsible party | L52: Grow-in - NSP responsibility
L53: Blow-in/Fall-in - Other responsible party
L54: Grow-in - Other responsible party
K55: Weather
K56: 2 - STPIS Exclusion (3.3)(a)
K57: 3 - STPIS Exclusion (3.3)(a)
K58: 4 - STPIS Exclusion (3.3)(a)
K59: 5 - STPIS Exclusion (3.3)(a)
K60: 6 - STPIS Exclusion (3.3)(a)
K61: 7 - STPIS Exclusion (3.3)(a)
B64: CA & RESET RINS TNSP | C64: dms_TNSP_0203_SubstationType | D64: dms_TNSP_020301_ProjectType | E64: dms_TNSP_020301_ProjectTrigger | F64: dms_TNSP_020302_ProjectType | G64: dms_TNSP_0203_ProjectTrigger
C65: Terminal station | D65: New substation establishment | E65: Demand growth | F65: New line on new route - single circuit | G65: Demand growth
C66: Switching station | D66: Capacity upgrade | E66: Voltage issues | F66: New line on new route - dual circuit | G66: Voltage issues
C67: Transmission substation | D67: Voltage upgrade | E67: Reactive power issue | F67: New line on new route - other | G67: Reactive power issue
C68: Other | D68: Other | E68: Fault level issues | F68: Line rebuild over existing route - single circuit | G68: Fault level issues
E69: Net market benefit | F69: Line rebuild over existing route - dual circuit | G69: Net market benefit
E70: Safety | F70: Reconductor - Single circuit | G70: Safety
E71: Environment | F71: Reconductor - Dual circuit | G71: Environment
E72: Other | F72: Reconductor - Other | G72: Other
F73: Line upgrade - raising/retensoring
F74: Line upgrade - voltage upgrade
F75: Line upgrade - capacity
F76: String spare circuit
F77: Other
B81: NAMED RANGES USED IN ETL PROCESS
M82: GAS ARR & RESET
B83: CA & RESET RINS DNSP ONLY | C83: dms_020303_01_UOM | D83: dms_020501_01_UOM | E83: dms_020501_02_UOM | F83: dms_020501_03_UOM | G83: dms_020501_04_UOM | H83: dms_020701_01_UOM | I83: dms_020701_02_UOM | J83: dms_020701_01_Rows | K83: dms_040102_01_UOM | L83: dms_040102_04_UOM | M83: dms_S140101_UOM
C84: Circuit line length in km | D84: 0's | E84: 0's | F84: 0's | G84: 0's | H84: km | I84: km | J84: Route line length within zone | K84: 0's | L84: days | M84: number
C85: Circuit line length in km | D85: 0's | E85: 0's | F85: 0's | G85: 0's | H85: 0's | I85: 0's | J85: Number of maintenance spans | K85: 0's | L85: 0's | M85: number
C86: Circuit line length in km | D86: MVA added | E86: MVA added | F86: MVA added | G86: MVA added | H86: km | I86: km | J86: Total length of maintenance spans | K86: 0's | L86: $0s | M86: number
C87: Circuit line length in km | D87: 0's | E87: 0's | F87: 0's | G87: 0's | H87: km | I87: km | J87: Length of vegetation corridors | K87: $0s | L87: 0's | M87: km
C88: Number | D88: total spend $0s | E88: total spend $0s | F88: total spend $0s | G88: total spend $0s | H88: 0's | I88: 0's | J88: Average number of trees per maintenance span
C89: Number | D89: net circuit km added | E89: net circuit km added | F89: net circuit km added | G89: net circuit km added | H89: years | I89: years | J89: Average frequency of cutting cycle
C90: Number | D90: total spend $0s | E90: total spend $0s | F90: total spend $0s | G90: total spend $0s
D91: net circuit km added | E91: net circuit km added | F91: net circuit km added | G91: net circuit km added
D92: total spend $0s | E92: total spend $0s | F92: total spend $0s | G92: total spend $0s
D93: 0's | F93: $0s
D94: 0's
D95: 0's
D96: $0s
B99: CA & RESET RINS TNSP ONLY | C99: dms_020701_01_UOM
C100: km
C101: 0's
C102: km
C103: 0's
C104: km
C105: metres
C106: years
B109: CA & RESET RINS DNSP & TNSP | C109: dms_020603_01_UOM
C110: 0's
C111: 0's
C112: 0's
C113: 0's
C114: (per cent)
B117: EB & RESET RINS DNSP ONLY | C117: dms_030601_01_UOM | D117: dms_030601_02_UOM | E117: dms_030701_01_UOM | F117: dms_030702_01_UOM | G117: dms_030703_01_UOM
C118: minutes/customer | D118: minutes/customer | E118: Customer / km | F118: % | G118: km
C119: minutes/customer | D119: minutes/customer | E119: MWh/customer | F119: Number of spans
C120: interruptions/customer | D120: interruptions/customer | E120: kVA / customer | F120: Number of spans
C121: interruptions/customer | D121: interruptions/customer | F121: Number of spans
F122: Number of spans
F123: Years
F124: Years
F125: Trees
F126: Trees
F127: Defects
F128: Defects
F129: Spans
F130: km
F131: Spans
C133: WHEN INSERTING COVER SHEET INTO A TNSP FILE - APPLY THESE NAMED RANGES
B134: EB & RESET RINS TNSP ONLY | C134: dms_030601_01_UOM | E134: dms_030701_01_UOM | F134: dms_030702_01_UOM
C135: % | E135: Number of spans | F135: km
C136: number | E136: Years | F136: %
C137: number | E137: Trees | F137: km
C138: % | E138: Defects | F138: number
C139: number | E139: Number of spans
C140: number | E140: km
C141: % | E141: km
C142: number | E142: Number of spans
C143: number
C144: %
C145: number
C146: %
C147: number
C148: %
C149: number
B151: EB & RESET RINS DNSP & TNSP | C151: dms_EB_RAB_PIT
C152: Beginning of year
C153: End of year
C154: End of year
C155: End of year
C156: End of year
C157: End of year
B159: ARR DNSP ONLY | C159: dms_030605_UOM | D159: dms_03060703_UOM | E159: dms_E020202_UOM | F159: Spare
C160: number | D160: number | E160: Length of mains replaced
C161: number | D161: number | E161: Number of services replaced
C162: number | D162: number
C163: number | D163: number
C164: number | D164: (per cent)
C165: number
C166: number
C167: number
C168: number
C169: number
C170: number
C171: number
C172: (per cent)
C173: (per cent)
B175: RFM | C175: dms_Beg | D175: dms_Mid | E175: dms_End
C176: Beginning of year | D176: Mid year | E176: End of Year
B178: PTRM | C178: dms_PTRM_RAB_PIT | D178: dms_PTRM_TAB_PIT | E178: DMS_Xfactor
C179: Beginning of year | D179: Beginning of year | E179: x factors
C180: End of year | D180: End of year
C181: End of year | D181: End of year
C182: End of year | D182: End of year
C183: End of year
B186: STPIS & MIC NAMED RANGES
B188: These "row descriptions" are the column headings in the various templates but become row descriptions in the ETL process
B190: Table 6.3 sustained interruptions - row descriptions | C190: dms_060301_CustNo_Affected_Row | D190: dms_060301_Avg_Duration_Sustained_Int_Row | E190: dms_060301_Effect_unplanned_SAIDI_Row | F190: dms_060301_Effect_unplanned_SAIFI_Row
C191: Number of customers affected by the interruption | D191: Average duration of sustained customer interruption | E191: Effect on unplanned SAIDI | F191: Effect on unplanned SAIFI
B194: Table 6.1 telephone answering - row descriptions and start date | C194: dms_060101_Rows | D194: dms_060102_Rows | E194: dms_060101_StartDateTxt
C195: Total number of calls (after removing excluded events) | D195: Number of calls answered within 30 seconds (after excluding excluded events) | E195: =dms_060701_StartDateTxt -> 1-Jul-2015
B198: Table 6.8.1 - row descriptions | C198: dms_060801_01_Rows | D198: dms_060801_02_Rows | E198: dms_060801_03_Rows | F198: dms_060801_04_Rows
C199: Number of interruptions | D199: Duration of interruptions | E199: Total unplanned minutes off supply | F199: Effect on unplanned MAIFI
B202: Table 7.9.4 - market impact component - row descriptions | C202: dms_070904_01_Rows | D202: without exclusions | E202: with exclusions
B205: These headings (Lists) are determined from the INDEX/MATCH function on the NSP selected on the Business & other details sheet
B207: Table 6.7.1 - daily performance data - unplanned - MAIFI -- row descriptions and header named range values | C207: dms_060701_Feeder_Header_Lvl4 | D207: =INDEX(dms_FeederName_1,MATCH(dms_TradingName,dms_TradingName_List)) -> CBD | E207: =INDEX(dms_FeederName_1,MATCH(dms_TradingName,dms_TradingName_List)) -> CBD | F207: =INDEX(dms_FeederName_2,MATCH(dms_TradingName,dms_TradingName_List)) -> Urban | G207: =INDEX(dms_FeederName_2,MATCH(dms_TradingName,dms_TradingName_List)) -> Urban | H207: =INDEX(dms_FeederName_3,MATCH(dms_TradingName,dms_TradingName_List)) -> Short rural | I207: =INDEX(dms_FeederName_3,MATCH(dms_TradingName,dms_TradingName_List)) -> Short rural | J207: =INDEX(dms_FeederName_4,MATCH(dms_TradingName,dms_TradingName_List)) -> Long rural | K207: =INDEX(dms_FeederName_4,MATCH(dms_TradingName,dms_TradingName_List)) -> Long rural | L207: =IF((INDEX(dms_FeederName_5,MATCH(dms_TradingName,dms_TradingName_List))=0),"Network",(INDEX(dms_FeederName_5,MATCH(dms_TradingName,dms_TradingName_List)))) -> Network | M207: =IF((INDEX(dms_FeederName_5,MATCH(dms_TradingName,dms_TradingName_List))=0),"Network",(INDEX(dms_FeederName_5,MATCH(dms_TradingName,dms_TradingName_List)))) -> Network | N207: Network | O207: Network
C209: dms_060701_Rows | D209: All events | E209: After removing excluded events | F209: All events | G209: After removing excluded events | H209: All events | I209: After removing excluded events | J209: All events | K209: After removing excluded events | L209: All events | M209: After removing excluded events | N209: All events | O209: After removing excluded events
D210: the number of column headings changes from 10 to 12 depending on the number of feeder categories for the NSP
C212: dms_0603_FeederList | D212: =INDEX(dms_FeederName_1,MATCH(dms_TradingName,dms_TradingName_List)) -> CBD | E212: =INDEX(dms_FeederName_2,MATCH(dms_TradingName,dms_TradingName_List)) -> Urban | F212: =INDEX(dms_FeederName_3,MATCH(dms_TradingName,dms_TradingName_List)) -> Short rural | G212: =INDEX(dms_FeederName_4,MATCH(dms_TradingName,dms_TradingName_List)) -> Long rural
B215: Use these to add to specific worksheets in existing files | C215: Use these to add to specific worksheets in existing files
B218: ARRs 6.7 STPIS daily performance | C218: dms_060101_Values | D218: dms_060102_Values | E218: dms_060701_Values
C219: dms_LeapYear
B222: ARR's 6.8 STPIS exclusions | C222: dms_060801_Event_Date | D222: dms_060801_OutageID | E222: dms_060801_FeederID | F222: dms_060801_FeederClass | G222: dms_060801_CauseID | H222: dms_060801_01_Values | I222: dms_060801_02_Values | J222: dms_060801_03_Values | K222: dms_060801_Excl_Cat | L222: dms_060801_04_Values
C223: dms_060801_StartCell
B226: CA 6.3 sustained interruptions | C226: dms_060301_Event_Date | D226: dms_060301_Event_Time | E226: dms_060301_AssetID | F226: dms_060301_FeederClass | G226: dms_060301_Reason | H226: dms_060301_DetailedReason | I226: dms_060301_CustNo_Affected_Values | J226: dms_060301_Avg_Duration_Sustained_Int_Values | K226: dms_060301_Effect_unplanned_SAIDI_Values | L226: dms_060301_Effect_unplanned_SAIFI_Values | M226: dms_060301_MED

Sheet AER lookups (hidden)
B1: AER LOOKUP TABLES
B3: Data in these columns used for data validation and database purposes.
B4: Date last modified: | C4: 2017-01-16 | D4: added (Albury and Victora) for AGN
C5: 2016-10-17 | D5: updated TransGrid's correct legal name, corrected TasNetworks (T) to June financial year
C6: 2017-02-01 | D6: inserted Power and Water, added NRs (dms_FeederCat_1 and dms_FeederCat_2)
C7: 2017-03-03 | D7: inserted AEMO as a business
C8: 2018-03-28 | D8: major changes to accommodate STPIS
C9: Template Version | D9: 5
Z11: FOR ELECTRICITY BUSINESSES ONLY
Z12: Feeder Types | AD12: TasNetworks (D) | AE12: Feeder Names
Z14: CBD | AA14: Urban | AB14: Short rural | AC14: long rural | AD14: EXTRA
B15: dms_TradingName_List | C15: dms_TradingNameFull_List | D15: dms_ABN_List | E15: dms_JurisdictionList | F15: dms_Sector_List | G15: dms_Segment_List | H15: dms_FormControl_List | I15: dms_RPT_List | J15: dms_RPTMonth_List | K15: dms_CRCPlength_List | L15: dms_FRCPlength_List | M15: dms_PRCPlength_List | N15: dms_663_List | O15: dms_DeterminationRef_List | P15: dms_Addr1_List | Q15: dms_Addr2_List | R15: dms_Suburb_List | S15: dms_State_List | T15: dms_PostCode_List | U15: dms_PAddr1_List | V15: dms_PAddr2_List | W15: dms_PSuburb_List | X15: dms_PState_List | Y15: dms_PPostCode_List | Z15: dms_CBD_flag | AA15: dms_Urban_flag | AB15: dms_ShortRural_flag | AC15: dms_LongRural_flag | AD15: dms_FeederType_5_flag | AE15: dms_FeederName_1 | AF15: dms_FeederName_2 | AG15: dms_FeederName_3 | AH15: dms_FeederName_4 | AI15: dms_FeederName_5 | AJ15: dms_Public_Lighting_List | AK15: Name
B16: ActewAGL Distribution | C16: ActewAGL Distribution | D16: 76670568688 | E16: ACT | F16: Electricity | G16: Distribution | H16: Revenue cap | I16: Financial | J16: June | K16: 5 | L16: 5 | M16: 5 | N16: 5 | O16: 2014-19 Distribution Determination | P16: 40 Bunda Street | R16: CANBERRA | S16: ACT | T16: 2600 | U16: GPO BOX 366 | W16: CANBERRA | X16: ACT | Y16: 2601 | Z16: NO | AA16: YES | AB16: YES | AC16: NO | AD16: NO | AE16: CBD | AF16: Urban | AG16: Short rural | AH16: Long rural | AJ16: NO | AK16: =B16 -> ActewAGL Distribution
B17: ActewAGL Distribution (Tx Assets) | C17: ActewAGL Distribution (Tx Assets) | D17: 76670568688 | E17: ACT | F17: Electricity | G17: Distribution | H17: Revenue cap | I17: Financial | J17: June | K17: 5 | L17: 5 | M17: 5 | N17: 5 | O17: distribution determination | P17: 40 Bunda Street | R17: CANBERRA | S17: ACT | T17: 2600 | U17: GPO BOX 366 | W17: CANBERRA | X17: ACT | Y17: 2601 | Z17: NO | AA17: YES | AB17: YES | AC17: NO | AD17: NO | AE17: CBD | AF17: Urban | AG17: Short rural | AH17: Long rural | AJ17: NO | AK17: ActewAGL Distribution (Tx Assets)
B18: ActewAGL Gas | C18: Icon Distribution Investments Limited (ABN 83 073 025 224) and Jemena Networks (ACT) Pty Ltd (ABN 24 008 552 663) | D18: 76670568688 | E18: ACT | F18: Gas | G18: Distribution | H18: Weighted average price cap | I18: Financial | J18: June | K18: 5 | L18: 5 | M18: 5 | N18: x | P18: 40 Bunda Street | R18: CANBERRA | S18: ACT | T18: 2600 | U18: GPO BOX 366 | W18: CANBERRA | X18: ACT | Y18: 2601 | Z18: NO | AA18: NO | AB18: NO | AC18: NO | AD18: NO | AE18: CBD | AF18: Urban | AG18: Short rural | AH18: Long rural | AJ18: NO | AK18: ActewAGL Gas
B19: AEMO | C19: Australian Energy Market Operator Ltd | D19: 94072010327 | E19: Vic | F19: Electricity | G19: Transmission | H19: - | I19: Financial | J19: March | K19: 5 | L19: 5 | M19: 5 | N19: x | O19: - | P19: Level 22 | Q19: 530 Collins Street | R19: MELBOURNE | S19: Vic | T19: 3000 | U19: GPO Box 2008 | W19: MELBOURNE | X19: Vic | Y19: 3001 | Z19: NO | AA19: NO | AB19: NO | AC19: NO | AD19: NO | AE19: CBD | AF19: Urban | AG19: Short rural | AH19: Long rural | AJ19: NO | AK19: AEMO
B20: AGN (Albury and Victoria) | C20: Australian Gas Networks Limited (reporting data for Albury and Victoria) | D20: 19078551685 | E20: Vic | F20: Gas | G20: Distribution | H20: Weighted average price cap | I20: Calendar | J20: December | K20: 5 | L20: 5 | M20: 5 | N20: x | P20: Level 6 | Q20: 400 King William Street | R20: ADELAIDE | S20: SA | T20: 5000 | U20: PO Box 6468 | V20: Halifax Street | W20: ADELAIDE | X20: SA | Y20: 5000 | Z20: NO | AA20: NO | AB20: NO | AC20: NO | AD20: NO | AE20: CBD | AF20: Urban | AG20: Short rural | AH20: Long rural | AJ20: NO | AK20: AGN (Albury and Victoria)
B21: AGN (Albury) | C21: Australian Gas Networks Limited (reporting data for Albury) | D21: 19078551685 | E21: Vic | F21: Gas | G21: Distribution | H21: Weighted average price cap | I21: Calendar | J21: December | K21: 5 | L21: 5 | M21: 5 | N21: x | P21: Level 6 | Q21: 400 King William Street | R21: ADELAIDE | S21: SA | T21: 5000 | U21: PO Box 6468 | V21: Halifax Street | W21: ADELAIDE | X21: SA | Y21: 5000 | Z21: NO | AA21: NO | AB21: NO | AC21: NO | AD21: NO | AE21: CBD | AF21: Urban | AG21: Short rural | AH21: Long rural | AJ21: NO | AK21: AGN (Albury)
B22: AGN (SA) | C22: Australian Gas Networks Limited (reporting data for SA) | D22: 19078551685 | E22: SA | F22: Gas | G22: Distribution | H22: Weighted average price cap | I22: Financial | J22: June | K22: 5 | L22: 5 | M22: 5 | N22: 5 | O22: distribution determination | P22: Level 6 | Q22: 400 King William Street | R22: ADELAIDE | S22: SA | T22: 5000 | U22: PO Box 6468 | V22: Halifax Street | W22: ADELAIDE | X22: SA | Y22: 5000 | Z22: NO | AA22: NO | AB22: NO | AC22: NO | AD22: NO | AE22: CBD | AF22: Urban | AG22: Short rural | AH22: Long rural | AJ22: NO | AK22: AGN (SA)
B23: AGN (Victoria) | C23: Australian Gas Networks Limited (reporting data for Victoria) | D23: 19078551685 | E23: Vic | F23: Gas | G23: Distribution | H23: Weighted average price cap | I23: Calendar | J23: December | K23: 5 | L23: 5 | M23: 5 | N23: x | P23: Level 6 | Q23: 400 King William Street | R23: ADELAIDE | S23: SA | T23: 5000 | U23: PO Box 6468 | V23: Halifax Street | W23: ADELAIDE | X23: SA | Y23: 5000 | Z23: NO | AA23: NO | AB23: NO | AC23: NO | AD23: NO | AE23: CBD | AF23: Urban | AG23: Short rural | AH23: Long rural | AJ23: NO | AK23: AGN (Victoria)
B24: Amadeus | C24: APT Pipelines (NT) Pty Ltd | D24: 39009737393 | E24: NT | F24: Gas | G24: Transmission | H24: Weighted average price cap | I24: Financial | J24: June | K24: 5 | L24: 5 | M24: 5 | N24: x | O24: n/a | P24: Level 19, HSBC Building | Q24: 580 George Street | R24: SYDNEY | S24: NSW | T24: 2000 | U24: Level 19, HSBC Building | V24: 580 George Street | W24: SYDNEY | X24: NSW | Y24: 2000 | Z24: NO | AA24: NO | AB24: NO | AC24: NO | AD24: NO | AE24: CBD | AF24: Urban | AG24: Short rural | AH24: Long rural | AJ24: NO | AK24: Amadeus
B25: APA GasNet | C25: APA GasNet Australia (Operations) Pty Ltd | D25: 65083009 | E25: Vic | F25: Gas | G25: Transmission | H25: Weighted average price cap | I25: Calendar | J25: December | K25: 5 | L25: 5 | M25: 5 | N25: x | P25: Level 19, HSBC Building | Q25: 580 George Street | R25: SYDNEY | S25: NSW | T25: 2000 | U25: PO Box R41 | W25: ROYAL EXCHANGE | X25: NSW | Y25: 1225 | Z25: NO | AA25: NO | AB25: NO | AC25: NO | AD25: NO | AE25: CBD | AF25: Urban | AG25: Short rural | AH25: Long rural | AJ25: NO | AK25: APA GasNet
B26: Ausgrid | C26: Ausgrid | D26: 67505337385 | E26: NSW | F26: Electricity | G26: Distribution | H26: Revenue cap | I26: Financial | J26: June | K26: 5 | L26: 5 | M26: 5 | N26: 5 | O26: 2014-19 Distribution Determination | P26: 570 George St | R26: SYDNEY | S26: NSW | T26: 2000 | U26: GPO Box 4009 | W26: SYDNEY | X26: NSW | Y26: 2001 | Z26: YES | AA26: YES | AB26: YES | AC26: YES | AD26: NO | AE26: CBD | AF26: Urban | AG26: Short rural | AH26: Long rural | AJ26: YES | AK26: Ausgrid
B27: Ausgrid (Tx Assets) | C27: Ausgrid (Tx Assets) | D27: 67505337385 | E27: NSW | F27: Electricity | G27: Distribution | H27: Revenue cap | I27: Financial | J27: June | K27: 5 | L27: 5 | M27: 5 | N27: 5 | O27: distribution determination | P27: 570 George St | R27: SYDNEY | S27: NSW | T27: 2000 | U27: GPO Box 4009 | W27: SYDNEY | X27: NSW | Y27: 2001 | Z27: YES | AA27: YES | AB27: YES | AC27: YES | AD27: NO | AE27: CBD | AF27: Urban | AG27: Short rural | AH27: Long rural | AJ27: NO | AK27: Ausgrid (Tx Assets)
B28: AusNet (D) | C28: AusNet Electricity Services Pty Ltd | D28: 91064651118 | E28: Vic | F28: Electricity | G28: Distribution | H28: Revenue cap | I28: Financial | J28: June | K28: 5 | L28: 5 | M28: 5 | N28: 2 | O28: 2016-20 Distribution Determination | P28: Level 32 | Q28: 2 Southbank Boulevard | R28: SOUTHBANK | S28: Vic | T28: 3006 | U28: Locked Bag 14051 | W28: MELBOURNE CITY MAIL CENTRE | X28: Vic | Y28: 8001 | Z28: NO | AA28: YES | AB28: YES | AC28: YES | AD28: NO | AE28: CBD | AF28: Urban | AG28: Short rural | AH28: Long rural | AJ28: YES | AK28: AusNet (D)
B29: AusNet (Gas) | C29: AusNet Gas Services | D29: 086015036 | E29: Vic | F29: Gas | G29: Distribution | H29: Weighted average price cap | I29: Calendar | J29: December | K29: 5 | L29: 5 | M29: 5 | N29: - | O29: - | P29: Level 19, HSBC Building | Q29: 580 George Street | R29: SYDNEY | S29: NSW | T29: 2000 | U29: PO Box R41 | W29: ROYAL EXCHANGE | X29: NSW | Y29: 1225 | Z29: NO | AA29: NO | AB29: NO | AC29: NO | AD29: NO | AE29: CBD | AF29: Urban | AG29: Short rural | AH29: Long rural | AJ29: NO | AK29: AusNet (Gas)
B30: AusNet (T) | C30: Ausnet Services (Transmission) Ltd | D30: 48116124362 | E30: Vic | F30: Electricity | G30: Transmission | H30: Revenue cap | I30: Financial | J30: March | K30: 5 | L30: 5 | M30: 5 | N30: 2 | O30: transmission determination | P30: Level 32 | Q30: 2 Southbank Boulevard | R30: SOUTHBANK | S30: Vic | T30: 3006 | U30: Locked Bag 14051 | W30: MELBOURNE CITY MAIL CENTRE | X30: Vic | Y30: 8001 | Z30: NO | AA30: NO | AB30: NO | AC30: NO | AD30: NO | AE30: CBD | AF30: Urban | AG30: Short rural | AH30: Long rural | AJ30: NO | AK30: AusNet (T)
B31: Australian Distribution Co. | C31: Australian Distribution Co. | D31: 11222333444 | E31: NSW | F31: Electricity | G31: Distribution | H31: Revenue cap | I31: Financial | J31: June | K31: 5 | L31: 5 | M31: 5 | N31: 2 | O31: distribution determination | P31: 123 Straight Street | R31: SYDNEY | S31: NSW | T31: 2000 | U31: PO Box 123 | W31: SYDNEY | X31: NSW | Y31: 2000 | Z31: YES | AA31: YES | AB31: YES | AC31: YES | AD31: NO | AE31: CBD | AF31: Urban | AG31: Short rural | AH31: Long rural | AJ31: YES | AK31: Australian Distribution Co.
B32: Australian Distribution Co. (Gas) | C32: Australian Gas Distribution Co. | D32: 11222333444 | E32: NSW | F32: Gas | G32: Distribution | H32: Weighted average price cap | I32: Financial | J32: June | K32: 5 | L32: 5 | M32: 5 | N32: - | O32: - | P32: 123 Straight Street | R32: SYDNEY | S32: NSW | T32: 2000 | U32: PO Box 123 | W32: SYDNEY | X32: NSW | Y32: 2000 | Z32: NO | AA32: NO | AB32: NO | AC32: NO | AD32: NO | AE32: CBD | AF32: Urban | AG32: Short rural | AH32: Long rural | AJ32: NO | AK32: Australian Distribution Co. (Gas)
B33: Australian Distribution Co. (Vic) | C33: Australian Distribution Co. (Victoria) | D33: 11222333444 | E33: Vic | F33: Electricity | G33: Distribution | H33: Revenue cap | I33: Financial | J33: June | K33: 5 | L33: 5 | M33: 5 | N33: 2 | O33: distribution determination | P33: 123 Straight Street | R33: MELBOURNE | S33: Vic | T33: 3000 | U33: PO Box 123 | W33: MELBOURNE | X33: Vic | Y33: 3000 | Z33: NO | AA33: NO | AB33: NO | AC33: NO | AD33: NO | AE33: CBD | AF33: Urban | AG33: Short rural | AH33: Long rural | AJ33: YES | AK33: Australian Distribution Co. (Vic)
B34: Australian Transmission Co. | C34: Australian Transmission Co. | D34: 11222333444 | E34: NSW | F34: Electricity | G34: Transmission | H34: Revenue cap | I34: Financial | J34: June | K34: 5 | L34: 5 | M34: 5 | N34: 5 | O34: transmission determination | P34: 123 Straight Street | R34: SYDNEY | S34: NSW | T34: 2000 | U34: PO Box 123 | W34: SYDNEY | X34: NSW | Y34: 2000 | Z34: NO | AA34: NO | AB34: NO | AC34: NO | AD34: NO | AE34: CBD | AF34: Urban | AG34: Short rural | AH34: Long rural | AJ34: NO | AK34: Australian Transmission Co.
B35: Australian Transmission Co. (Gas) | C35: Australian Transmission Co. (Gas) | D35: 11222333444 | E35: NSW | F35: Gas | G35: Transmission | H35: Revenue cap | I35: Financial | J35: June | K35: 5 | L35: 5 | M35: 5 | N35: 5 | O35: transmission determination | P35: 123 Straight Street | R35: SYDNEY | S35: NSW | T35: 2000 | U35: PO Box 123 | W35: SYDNEY | X35: NSW | Y35: 2000 | Z35: NO | AA35: NO | AB35: NO | AC35: NO | AD35: NO | AE35: CBD | AF35: Urban | AG35: Short rural | AH35: Long rural | AJ35: NO | AK35: Australian Transmission Co. (Gas)
B36: Central Ranges Pipeline (D) | C36: Central Ranges Pipeline Pty Ltd | D36: 108218355 | E36: NSW | F36: Gas | G36: Distribution | H36: Weighted average price cap | I36: Financial | J36: June | K36: 15 | L36: 5 | M36: 5 | N36: 5 | O36: distribution determination | P36: Level 19 | Q36: 580 George Street | R36: SYDNEY | S36: NSW | T36: 2000 | U36: PO Box R41 | W36: ROYAL EXCHANGE | X36: NSW | Y36: 1225 | Z36: NO | AA36: NO | AB36: NO | AC36: NO | AD36: NO | AE36: CBD | AF36: Urban | AG36: Short rural | AH36: Long rural | AK36: Central Ranges Pipeline (D)
B37: Central Ranges Pipeline (T) | C37: Central Ranges Pipeline Pty Ltd | D37: 108218355 | E37: NSW | F37: Gas | G37: Transmission | H37: Weighted average price cap | I37: Financial | J37: June | K37: 14 | L37: 5 | M37: 5 | N37: 5 | O37: transmission determination | P37: Level 19 | Q37: 580 George Street | R37: SYDNEY | S37: NSW | T37: 2000 | U37: PO Box R41 | W37: ROYAL EXCHANGE | X37: NSW | Y37: 1225 | Z37: NO | AA37: NO | AB37: NO | AC37: NO | AD37: NO | AE37: CBD | AF37: Urban | AG37: Short rural | AH37: Long rural | AJ37: NO | AK37: Central Ranges Pipeline (T)
B38: CitiPower | C38: CitiPower | D38: 76064651056 | E38: Vic | F38: Electricity | G38: Distribution | H38: Revenue cap | I38: Financial | J38: June | K38: 5 | L38: 5 | M38: 5 | N38: 2 | O38: 2016-20 Distribution Determination | P38: 40 Market Street | R38: MELBOURNE | S38: Vic | T38: 3000 | U38: Locked Bag 14090 | W38: MELBOURNE | X38: Vic | Y38: 8001 | Z38: YES | AA38: YES | AB38: NO | AC38: NO | AD38: NO | AE38: CBD | AF38: Urban | AG38: Short rural | AH38: Long rural | AJ38: YES | AK38: CitiPower
B39: Directlink | C39: Directlink | D39: 16779340889 | E39: Qld | F39: Electricity | G39: Transmission | H39: Revenue cap | I39: Financial | J39: June | K39: 5 | L39: 5 | M39: 5 | N39: 5 | O39: transmission determination | P39: Level 25 | Q39: 580 George Street | R39: SYDNEY | S39: NSW | T39: 2000 | U39: PO Box R41 | W39: ROYAL EXCHANGE | X39: NSW | Y39: 1225 | Z39: NO | AA39: NO | AB39: NO | AC39: NO | AD39: NO | AE39: CBD | AF39: Urban | AG39: Short rural | AH39: Long rural | AJ39: NO | AK39: Directlink
B40: ElectraNet | C40: ElectraNet | D40: 41094482416 | E40: SA | F40: Electricity | G40: Transmission | H40: Revenue cap | I40: Financial | J40: June | K40: 5 | L40: 5 | M40: 5 | N40: 5 | O40: transmission determination | P40: 52-55 East Terrace | Q40: Rymill Park | R40: ADELAIDE | S40: SA | T40: 5000 | U40: PO Box 7096 | V40: Hutt Street Post Office | W40: ADELAIDE | X40: SA | Y40: 5000 | Z40: NO | AA40: NO | AB40: NO | AC40: NO | AD40: NO | AE40: CBD | AF40: Urban | AG40: Short rural | AH40: Long rural | AJ40: NO | AK40: ElectraNet
B41: Endeavour Energy | C41: Endeavour Energy | D41: 11247365823 | E41: NSW | F41: Electricity | G41: Distribution | H41: Revenue cap | I41: Financial | J41: June | K41: 5 | L41: 5 | M41: 5 | N41: 5 | O41: 2014-19 Distribution Determination | P41: 51 Huntingwood Drive | R41: HUNTINGWOOD | S41: NSW | T41: 2148 | U41: PO Box 811 | W41: SEVEN HILLS | X41: NSW | Y41: 1730 | Z41: YES | AA41: YES | AB41: YES | AC41: YES | AD41: NO | AE41: CBD | AF41: Urban | AG41: Short rural | AH41: Long rural | AJ41: YES | AK41: Endeavour Energy
B42: Energex | C42: Energex | D42: 40078849055 | E42: Qld | F42: Electricity | G42: Distribution | H42: Revenue cap | I42: Financial | J42: June | K42: 5 | L42: 5 | M42: 5 | N42: 5 | O42: 2015-20 Distribution Determination | P42: 26 Reddacliff Street | R42: NEWSTEAD | S42: Qld | T42: 4006 | U42: 26 Reddacliff Street | W42: NEWSTEAD | X42: QLD | Y42: 4006 | Z42: YES | AA42: YES | AB42: YES | AC42: NO | AD42: NO | AE42: CBD | AF42: Urban | AG42: Short rural | AH42: Long rural | AJ42: YES | AK42: Energex
B43: Ergon Energy | C43: Ergon Energy | D43: 50087646062 | E43: Qld | F43: Electricity | G43: Distribution | H43: Revenue cap | I43: Financial | J43: June | K43: 5 | L43: 5 | M43: 5 | N43: 5 | O43: 2015-20 Distribution Determination | P43: 22 Walker Street | R43: TOWNSVILLE | S43: Qld | T43: 4810 | U43: Po Box 264 | W43: FORTITUDE VALLEY | X43: QLD | Y43: 4006 | Z43: NO | AA43: YES | AB43: YES | AC43: YES | AD43: NO | AE43: CBD | AF43: Urban | AG43: Short rural | AH43: Long rural | AJ43: YES | AK43: Ergon Energy
B44: Essential Energy | C44: Essential Energy | D44: 37428185226 | E44: NSW | F44: Electricity | G44: Distribution | H44: Revenue cap | I44: Financial | J44: June | K44: 5 | L44: 5 | M44: 5 | N44: 5 | O44: 2014-19 Distribution Determination | P44: 8 Buller Street | R44: PORT MACQUARIE | S44: NSW | T44: 2444 | U44: PO Box 5730 | W44: PORT MACQUARIE | X44: NSW | Y44: 2444 | Z44: NO | AA44: YES | AB44: YES | AC44: YES | AD44: NO | AE44: CBD | AF44: Urban | AG44: Short rural | AH44: Long rural | AJ44: YES | AK44: Essential Energy
B45: Evoenergy Distribution | C45: Evoenergy Distribution | D45: 76670568688 | E45: ACT | F45: Electricity | G45: Distribution | H45: Revenue cap | I45: Financial | J45: June | K45: 5 | L45: 5 | M45: 5 | N45: 5 | O45: 2014-19 Distribution Determination | P45: 40 Bunda Street | R45: CANBERRA | S45: ACT | T45: 2600 | U45: GPO BOX 366 | W45: CANBERRA | X45: ACT | Y45: 2601 | Z45: NO | AA45: YES | AB45: YES | AC45: NO | AD45: NO | AE45: CBD | AF45: Urban | AG45: Short rural | AH45: Long rural | AJ45: NO | AK45: Evoenergy Distribution
B46: Evoenergy Distribution (Tx Assets) | C46: Evoenergy Distribution (Tx Assets) | D46: 76670568688 | E46: ACT | F46: Electricity | G46: Distribution | H46: Revenue cap | I46: Financial | J46: June | K46: 5 | L46: 5 | M46: 5 | N46: 5 | O46: distribution determination | P46: 40 Bunda Street | R46: CANBERRA | S46: ACT | T46: 2600 | U46: GPO BOX 366 | W46: CANBERRA | X46: ACT | Y46: 2601 | Z46: NO | AA46: YES | AB46: YES | AC46: NO | AD46: NO | AE46: CBD | AF46: Urban | AG46: Short rural | AH46: Long rural | AJ46: NO | AK46: Evoenergy Distribution (Tx Assets)
B47: Evoenergy Gas | C47: Icon Distribution Investments Limited (ABN 83 073 025 224) and Jemena Networks (ACT) Pty Ltd (ABN 24 008 552 663) | D47: 76670568688 | E47: ACT | F47: Gas | G47: Distribution | H47: Weighted average price cap | I47: Financial | J47: June | K47: 5 | L47: 5 | M47: 5 | N47: x | P47: 40 Bunda Street | R47: CANBERRA | S47: ACT | T47: 2600 | U47: GPO BOX 366 | W47: CANBERRA | X47: ACT | Y47: 2601 | Z47: NO | AA47: NO | AB47: NO | AC47: NO | AD47: NO | AE47: CBD | AF47: Urban | AG47: Short rural | AH47: Long rural | AJ47: NO | AK47: Evoenergy Gas
B48: Jemena Electricity | C48: Jemena Electricity | D48: 82064651083 | E48: Vic | F48: Electricity | G48: Distribution | H48: Revenue cap | I48: Financial | J48: June | K48: 5 | L48: 5 | M48: 5 | N48: 2 | O48: 2016-20 Distribution Determination | P48: Level 16 | Q48: 567 Collins Street | R48: MELBOURNE | S48: Vic | T48: 3000 | U48: PO Box 16182 | W48: MELBOURNE | X48: Vic | Y48: 8001 | Z48: NO | AA48: YES | AB48: YES | AC48: NO | AD48: NO | AE48: CBD | AF48: Urban | AG48: Short rural | AH48: Long rural | AJ48: YES | AK48: Jemena Electricity
B49: JGN | C49: Jemena Gas Networks (NSW) Ltd | D49: 003 004 322 | E49: NSW | F49: Gas | G49: Distribution | H49: Weighted average price cap | I49: Financial | J49: June | K49: 5 | L49: 5 | M49: 5 | Z49: NO | AA49: NO | AB49: NO | AC49: NO | AD49: NO | AE49: CBD | AF49: Urban | AG49: Short rural | AH49: Long rural | AJ49: NO | AK49: JGN
B50: Multinet Gas | C50: Multinet Gas (DB No.1) Pty Ltd (ACN 086 026 986), Multinet Gas (DB No.2) Pty Ltd (ACN 086 230 122) | D50: 086026986 | E50: Vic | F50: Gas | G50: Distribution | H50: Weighted average price cap | I50: Calendar | J50: December | K50: 5 | L50: 5 | M50: 5 | N50: x | P50: 43-45 Centreway | R50: MT WAVERLEY | S50: Vic | T50: 3149 | Z50: NO | AA50: NO | AB50: NO | AC50: NO | AD50: NO | AE50: CBD | AF50: Urban | AG50: Short rural | AH50: Long rural | AJ50: NO | AK50: Multinet Gas
B51: Murraylink | C51: Murraylink | D51: 79181207909 | E51: SA | F51: Electricity | G51: Transmission | H51: Revenue cap | I51: Financial | J51: June | K51: 5 | L51: 5 | M51: 5 | N51: 5 | O51: transmission determination | P51: Level 19 | Q51: 580 George Street | R51: SYDNEY | S51: NSW | T51: 2000 | U51: PO Box R41 | W51: ROYAL EXCHANGE | X51: NSW | Y51: 1225 | Z51: NO | AA51: NO | AB51: NO | AC51: NO | AD51: NO | AE51: CBD | AF51: Urban | AG51: Short rural | AH51: Long rural | AJ51: NO | AK51: Murraylink
B52: Power and Water | C52: Power and Water Corporation | D52: 15947352360 | E52: NT | F52: Electricity | G52: Distribution | H52: Revenue cap | I52: Financial | J52: June | K52: 5 | L52: 5 | M52: 5 | N52: x | O52: distribution determination | P52: GPO Box 1921 | R52: DARWIN | S52: NT | T52: 801 | U52: GPO Box 1921 | W52: DARWIN | X52: NT | Y52: 801 | Z52: YES | AA52: YES | AB52: YES | AC52: YES | AD52: NO | AE52: CBD | AF52: Urban | AG52: Short rural | AH52: Long rural | AJ52: NO | AK52: Power and Water
B53: Powercor Australia | C53: Powercor Australia | D53: 89064651109 | E53: Vic | F53: Electricity | G53: Distribution | H53: Revenue cap | I53: Financial | J53: June | K53: 5 | L53: 5 | M53: 5 | N53: 2 | O53: 2016-20 Distribution Determination | P53: 40 Market Street | R53: MELBOURNE | S53: Vic | T53: 3000 | U53: Locked bag 14090 | W53: MELBOURNE | X53: Vic | Y53: 8001 | Z53: NO | AA53: YES | AB53: YES | AC53: YES | AD53: NO | AE53: CBD | AF53: Urban | AG53: Short rural | AH53: Long rural | AJ53: YES | AK53: Powercor Australia
B54: Powerlink | C54: Queensland Electricity Transmission Corporation Limited trading as Powerlink Queensland | D54: 82078849233 | E54: Qld | F54: Electricity | G54: Transmission | H54: Revenue cap | I54: Financial | J54: June | K54: 5 | L54: 5 | M54: 5 | N54: 5 | O54: transmission determination | P54: 33 Harold St | R54: VIRGINIA | S54: Qld | T54: 4014 | U54: PO Box 1193 | W54: VIRGINIA | X54: QLD | Y54: 4014 | Z54: NO | AA54: NO | AB54: NO | AC54: NO | AD54: NO | AE54: CBD | AF54: Urban | AG54: Short rural | AH54: Long rural | AJ54: NO | AK54: Powerlink
B55: Roma to Brisbane Pipeline | C55: APT Petroleum Pipelines Limited t/a Roma to Brisbane Pipeline | D55: 009 737 393 | E55: Qld | F55: Gas | G55: Transmission | H55: Weighted average price cap | I55: Financial | J55: June | K55: 5 | L55: 5 | M55: 5 | N55: x | O55: n/a | P55: 580 George Street | R55: SYDNEY | S55: NSW | T55: 2000 | U55: PO Box R41 | W55: ROYAL EXCHANGE | X55: NSW | Y55: 1225 | Z55: NO | AA55: NO | AB55: NO | AC55: NO | AD55: NO | AE55: CBD | AF55: Urban | AG55: Short rural | AH55: Long rural | AJ55: NO | AK55: Roma to Brisbane Pipeline
B56: SA Power Networks | C56: SA Power Networks | D56: 13332330749 | E56: SA | F56: Electricity | G56: Distribution | H56: Revenue cap | I56: Financial | J56: June | K56: 5 | L56: 5 | M56: 5 | N56: 5 | O56: 2015-20 Distribution Determination | P56: 1 Anzac Highway | R56: KESWICK | S56: SA | T56: 5035 | U56: GPO Box 77 | W56: ADELAIDE | X56: SA | Y56: 5000 | Z56: YES | AA56: YES | AB56: YES | AC56: YES | AD56: NO | AE56: CBD | AF56: Urban | AG56: Short rural | AH56: Long rural | AJ56: YES | AK56: SA Power Networks
B57: TasNetworks (D) | C57: TasNetworks (D) | D57: 24167357299 | E57: Tas | F57: Electricity | G57: Distribution | H57: Revenue cap | I57: Financial | J57: June | K57: 5 | L57: 5 | M57: 5 | N57: 5 | O57: distribution determination | P57: 1-7 Maria Street | R57: LENAH VALLEY | S57: Tas | T57: 7008 | U57: PO Box 606 | W57: MOONAH | X57: Tas | Y57: 7009 | Z57: YES | AA57: YES | AB57: YES | AC57: YES | AD57: YES | AE57: Critical Infrastructure | AF57: High density commercial | AG57: Urban | AH57: High density rural | AI57: Low density rural | AJ57: YES | AK57: TasNetworks (D)
B58: TasNetworks (T) | C58: TasNetworks (T) | D58: 24167357299 | E58: Tas | F58: Electricity | G58: Transmission | H58: Revenue cap | I58: Financial | J58: June | K58: 5 | L58: 5 | M58: 5 | N58: 5 | O58: transmission determination | P58: 1-7 Maria Street | R58: LENAH VALLEY | S58: Tas | T58: 7008 | U58: PO Box 606 | W58: MOONAH | X58: Tas | Y58: 7009 | Z58: NO | AA58: NO | AB58: NO | AC58: NO | AD58: NO | AE58: CBD | AF58: Urban | AG58: Short rural | AH58: Long rural | AJ58: NO | AK58: TasNetworks (T)
B59: TransGrid | C59: NSW Electricity Networks Operations Pty Ltd trading as TransGrid | D59: 70 250 995 390 | E59: NSW | F59: Electricity | G59: Transmission | H59: Revenue cap | I59: Financial | J59: June | K59: 4 | L59: 5 | M59: 5 | N59: 5 | O59: transmission determination | P59: 180 Thomas Street | R59: SYDNEY | S59: NSW | T59: 2000 | U59: PO Box A1000 | W59: SYDNEY SOUTH | X59: NSW | Y59: 1235 | Z59: NO | AA59: NO | AB59: NO | AC59: NO | AD59: NO | AE59: CBD | AF59: Urban | AG59: Short rural | AH59: Long rural | AJ59: NO | AK59: TransGrid
B60: United Energy | C60: United Energy | D60: 70064651029 | E60: Vic | F60: Electricity | G60: Distribution | H60: Revenue cap | I60: Financial | J60: June | K60: 5 | L60: 5 | M60: 5 | N60: 2 | O60: 2016-20 Distribution Determination | P60: 43-45 Centreway | R60: MOUNT WAVERLEY | S60: Vic | T60: 3149 | U60: PO Box 449 | W60: MOUNT WAVERLEY | X60: Vic | Y60: 3170 | Z60: NO | AA60: YES | AB60: YES | AC60: NO | AD60: NO | AE60: CBD | AF60: Urban | AG60: Short rural | AH60: Long rural | AJ60: YES | AK60: United Energy
B65: The Reg Year Ending (dms_RYE) must be set to the last year of the regulatory period. For forecast data is is usually (FRCP_y5) for actual it is a single year (CRY). For historical actual data the RYE will need to be set manually in the business details sheet by setting the dms_Multiyear_flag to 1 and putting the correct value in 'dms_Specified_FinalYear. See cells C67:C68
B66: dms_Model_List | C66: dms_Model_Name_Format1 | D66: dms_Worksheet_List | E66: dms_Model_Span_List
B67: ARR | C67: Annual Reporting | D67: =IF(dms_MultiYear_ResponseFlag="yes","NEW HISTORICAL ANNUAL REPORTING","ANNUAL REPORTING") -> ANNUAL REPORTING | E67: 1
B68: CA | C68: Category Analysis | D68: =IF(dms_MultiYear_ResponseFlag="yes","NEW HISTORICAL CATEGORY ANALYSIS","CATEGORY ANALYSIS") -> CATEGORY ANALYSIS | E68: 1
B69: CESS | C69: Capitlal Expenditure | D69: CAPITLAL EXPENDITURE SHARING SCHEMING | E69: 5
B70: CPI | C70: CPI | D70: CPI | E70: 5
B71: EB | C71: Economic Benchmarking | D71: =IF(dms_MultiYear_ResponseFlag="yes","NEW HISTORICAL ECONOMIC BENCHMARKING","ECONOMIC BENCHMARKING") -> ECONOMIC BENCHMARKING | E71: 1
B72: Pricing | C72: Pricing Proposal | D72: PRICING PROPOSAL | E72: 5
B73: PTRM | C73: Post Tax Revenue Model | D73: POST TAX REVENUE MODEL | E73: 5
B74: Reset | C74: Regulatory Reporting (Reset) | D74: REGULATORY REPORTING STATEMENT | E74: 5
B75: RFM | C75: Roll Forward Model | D75: ROLL FORWARD MODEL | E75: 5
B76: WACC | C76: Weighted Average Cost of Capital | D76: WEIGHTED AVERAGE COST OF CAPITAL | E76: 1
B80: Financial | C80: Calendar | E80: PREVIOUS | G80: CURRENT | I80: FORTHCOMING
B81: 1987-88 | C81: 1988 | D81: PRCP_y1 | E81: =INDEX(INDIRECT(dms_RPT),dms_PRCP_start_row) -> 2012-13 | F81: CRCP_y1 | G81: =INDEX(INDIRECT(dms_RPT),dms_CRCP_start_row) -> 2017-18 | H81: =FRCP_y1 -> 2022-23 | I81: =INDEX(INDIRECT(dms_RPT),dms_FRCP_start_row) -> 2022-23
B82: 1988-89 | C82: 1989 | D82: PRCP_y2 | E82: =INDEX(INDIRECT(dms_RPT),dms_PRCP_start_row+1) -> 2013-14 | F82: CRCP_y2 | G82: =INDEX(INDIRECT(dms_RPT),dms_CRCP_start_row+1) -> 2018-19 | H82: FRCP_y2 | I82: =INDEX(INDIRECT(dms_RPT),dms_FRCP_start_row+1) -> 2023-24
B83: 1989-90 | C83: 1990 | D83: PRCP_y3 | E83: =INDEX(INDIRECT(dms_RPT),dms_PRCP_start_row+2) -> 2014-15 | F83: CRCP_y3 | G83: =INDEX(INDIRECT(dms_RPT),dms_CRCP_start_row+2) -> 2019-20 | H83: FRCP_y3 | I83: =INDEX(INDIRECT(dms_RPT),dms_FRCP_start_row+2) -> 2024-25
B84: 1990-91 | C84: 1991 | D84: PRCP_y4 | E84: =INDEX(INDIRECT(dms_RPT),dms_PRCP_start_row+3) -> 2015-16 | F84: CRCP_y4 | G84: =INDEX(INDIRECT(dms_RPT),dms_CRCP_start_row+3) -> 2020-21 | H84: FRCP_y4 | I84: =INDEX(INDIRECT(dms_RPT),dms_FRCP_start_row+3) -> 2025-26
B85: 1991-92 | C85: 1992 | D85: PRCP_y5 | E85: =INDEX(INDIRECT(dms_RPT),dms_PRCP_start_row+4) -> 2016-17 | F85: CRCP_y5 | G85: =INDEX(INDIRECT(dms_RPT),dms_CRCP_start_row+4) -> 2021-22 | H85: FRCP_y5 | I85: =INDEX(INDIRECT(dms_RPT),dms_FRCP_start_row+4) -> 2026-27
B86: 1992-93 | C86: 1993 | D86: PRCP_y6 | E86: =INDEX(INDIRECT(dms_RPT),dms_PRCP_start_row+5) -> 2017-18 | F86: CRCP_y6 | G86: =INDEX(INDIRECT(dms_RPT),dms_CRCP_start_row+5) -> 2022-23 | H86: FRCP_y6 | I86: =INDEX(INDIRECT(dms_RPT),dms_FRCP_start_row+5) -> 2027-28
B87: 1993-94 | C87: 1994 | D87: PRCP_y7 | E87: =INDEX(INDIRECT(dms_RPT),dms_PRCP_start_row+6) -> 2018-19 | F87: CRCP_y7 | G87: =INDEX(INDIRECT(dms_RPT),dms_CRCP_start_row+6) -> 2023-24 | H87: FRCP_y7 | I87: =INDEX(INDIRECT(dms_RPT),dms_FRCP_start_row+6) -> 2028-29
B88: 1994-95 | C88: 1995 | D88: PRCP_y8 | E88: =INDEX(INDIRECT(dms_RPT),dms_PRCP_start_row+7) -> 2019-20 | F88: CRCP_y8 | G88: =INDEX(INDIRECT(dms_RPT),dms_CRCP_start_row+7) -> 2024-25 | H88: FRCP_y8 | I88: =INDEX(INDIRECT(dms_RPT),dms_FRCP_start_row+7) -> 2029-30
B89: 1995-96 | C89: 1996 | D89: PRCP_y9 | E89: =INDEX(INDIRECT(dms_RPT),dms_PRCP_start_row+8) -> 2020-21 | F89: CRCP_y9 | G89: =INDEX(INDIRECT(dms_RPT),dms_CRCP_start_row+8) -> 2025-26 | H89: FRCP_y9 | I89: =INDEX(INDIRECT(dms_RPT),dms_FRCP_start_row+8) -> 2030-31
B90: 1996-97 | C90: 1997 | D90: PRCP_y10 | E90: =INDEX(INDIRECT(dms_RPT),dms_PRCP_start_row+9) -> 2021-22 | F90: CRCP_y10 | G90: =INDEX(INDIRECT(dms_RPT),dms_CRCP_start_row+9) -> 2026-27 | H90: FRCP_y10 | I90: =INDEX(INDIRECT(dms_RPT),dms_FRCP_start_row+9) -> 2031-32
B91: 1997-98 | C91: 1998 | D91: PRCP_y11 | E91: =INDEX(INDIRECT(dms_RPT),dms_PRCP_start_row+10) -> 2022-23 | F91: CRCP_y11 | G91: =INDEX(INDIRECT(dms_RPT),dms_CRCP_start_row+10) -> 2027-28 | H91: FRCP_y11 | I91: =INDEX(INDIRECT(dms_RPT),dms_FRCP_start_row+10) -> 2032-33
B92: 1998-99 | C92: 1999 | D92: PRCP_y12 | E92: =INDEX(INDIRECT(dms_RPT),dms_PRCP_start_row+11) -> 2023-24 | F92: CRCP_y12 | G92: =INDEX(INDIRECT(dms_RPT),dms_CRCP_start_row+11) -> 2028-29 | H92: FRCP_y12 | I92: =INDEX(INDIRECT(dms_RPT),dms_FRCP_start_row+11) -> 2033-34
B93: 1999-00 | C93: 2000 | D93: PRCP_y13 | E93: =INDEX(INDIRECT(dms_RPT),dms_PRCP_start_row+12) -> 2024-25 | F93: CRCP_y13 | G93: =INDEX(INDIRECT(dms_RPT),dms_CRCP_start_row+12) -> 2029-30 | H93: FRCP_y13 | I93: =INDEX(INDIRECT(dms_RPT),dms_FRCP_start_row+12) -> 2034-35
B94: 2000-01 | C94: 2001 | D94: PRCP_y14 | E94: =INDEX(INDIRECT(dms_RPT),dms_PRCP_start_row+13) -> 2025-26 | F94: CRCP_y14 | G94: =INDEX(INDIRECT(dms_RPT),dms_CRCP_start_row+13) -> 2030-31 | H94: FRCP_y14 | I94: =INDEX(INDIRECT(dms_RPT),dms_FRCP_start_row+13) -> 2035-36
B95: 2001-02 | C95: 2002 | D95: PRCP_y15 | E95: =INDEX(INDIRECT(dms_RPT),dms_PRCP_start_row+14) -> 2026-27 | F95: CRCP_y15 | G95: =INDEX(INDIRECT(dms_RPT),dms_CRCP_start_row+14) -> 2031-32 | H95: FRCP_y15 | I95: =INDEX(INDIRECT(dms_RPT),dms_FRCP_start_row+14) -> 2036-37
B96: 2002-03 | C96: 2003 | D96: PRCP_y16 | E96: =INDEX(INDIRECT(dms_RPT),dms_PRCP_start_row+15) -> 2027-28 | F96: CRCP_y16 | G96: =INDEX(INDIRECT(dms_RPT),dms_CRCP_start_row+15) -> 2032-33 | H96: FRCP_y16 | I96: =INDEX(INDIRECT(dms_RPT),dms_FRCP_start_row+15) -> 
B97: 2003-04 | C97: 2004
B98: 2004-05 | C98: 2005
B99: 2005-06 | C99: 2006 | E99: CRY - FRY
B100: 2006-07 | C100: 2007 | D100: dms_y1 | E100: =IFERROR(INDEX(INDIRECT(dms_RPT),dms_CRY_start_row),0) -> 2021-22
B101: 2007-08 | C101: 2008 | D101: dms_y2 | E101: =IFERROR(INDEX(INDIRECT(dms_RPT),dms_CRY_start_row+1),0) -> 2022-23
B102: 2008-09 | C102: 2009 | D102: dms_y3 | E102: =IFERROR(INDEX(INDIRECT(dms_RPT),dms_CRY_start_row+2),0) -> 2023-24
B103: 2009-10 | C103: 2010 | D103: dms_y4 | E103: =IFERROR(INDEX(INDIRECT(dms_RPT),dms_CRY_start_row+3),0) -> 2024-25
B104: 2010-11 | C104: 2011 | D104: dms_y5 | E104: =IFERROR(INDEX(INDIRECT(dms_RPT),dms_CRY_start_row+4),0) -> 2025-26
B105: 2011-12 | C105: 2012 | D105: dms_y6 | E105: =IFERROR(INDEX(INDIRECT(dms_RPT),dms_CRY_start_row+5),0) -> 2026-27
B106: 2012-13 | C106: 2013 | D106: dms_y7 | E106: =IFERROR(INDEX(INDIRECT(dms_RPT),dms_CRY_start_row+6),0) -> 2027-28
B107: 2013-14 | C107: 2014 | D107: dms_y8 | E107: =IFERROR(INDEX(INDIRECT(dms_RPT),dms_CRY_start_row+7),0) -> 2028-29
B108: 2014-15 | C108: 2015 | D108: dms_y9 | E108: =IFERROR(INDEX(INDIRECT(dms_RPT),dms_CRY_start_row+8),0) -> 2029-30
B109: 2015-16 | C109: 2016 | D109: dms_y10 | E109: =IFERROR(INDEX(INDIRECT(dms_RPT),dms_CRY_start_row+9),0) -> 2030-31
B110: 2016-17 | C110: 2017 | D110: dms_y11 | E110: =IFERROR(INDEX(INDIRECT(dms_RPT),dms_CRY_start_row+10),0) -> 2031-32
B111: 2017-18 | C111: 2018 | D111: dms_y12 | E111: =IFERROR(INDEX(INDIRECT(dms_RPT),dms_CRY_start_row+11),0) -> 2032-33
B112: 2018-19 | C112: 2019 | D112: dms_y13 | E112: =IFERROR(INDEX(INDIRECT(dms_RPT),dms_CRY_start_row+12),0) -> 2033-34
B113: 2019-20 | C113: 2020 | D113: dms_y14 | E113: =IFERROR(INDEX(INDIRECT(dms_RPT),dms_CRY_start_row+13),0) -> 2034-35
B114: 2020-21 | C114: 2021 | D114: dms_y15 | E114: =IFERROR(INDEX(INDIRECT(dms_RPT),dms_CRY_start_row+14),0) -> 2035-36
B115: 2021-22 | C115: 2022 | D115: dms_y16 | E115: =IFERROR(INDEX(INDIRECT(dms_RPT),dms_CRY_start_row+15),0) -> 2036-37
B116: 2022-23 | C116: 2023
B117: 2023-24 | C117: 2024
B118: 2024-25 | C118: 2025
B119: 2025-26 | C119: 2026
B120: 2026-27 | C120: 2027
B121: 2027-28 | C121: 2028
B122: 2028-29 | C122: 2029
B123: 2029-30 | C123: 2030
B124: 2030-31 | C124: 2031
B125: 2031-32 | C125: 2032
B126: 2032-33 | C126: 2033
B127: 2033-34 | C127: 2034
B128: 2034-35 | C128: 2035
B129: 2035-36 | C129: 2036
B130: 2036-37 | C130: 2037

Sheet AER ETL (hidden)
B1: AER ETL INFORMATION
B3: USES NAMED RANGES FLAG | C3: yes | D3: dms_Defined_Names_Used
B5: IF THIS IS AN ABC RIN - make sure the the named range CRY is applied and the named range dms_dollar_nom_UOM is applied
B6: IF THIS IS A RESET RIN - make sure the named ranges CRY and dms_dollar_nom_UOM are NOT present in the workbook
B7: FOR ABC RINS THAT SPAN MULTIPLE YEARS - make sure MultiYear Flag is set and final year entered as required
B9: Full trading name | C9: =INDEX(dms_TradingNameFull_List,MATCH(dms_TradingName,dms_TradingName_List)) -> APT Petroleum Pipelines Limited t/a Roma to Brisbane Pipeline | E9: dms_TradingNameFull
B10: Trading name | C10: =dms_TradingName -> Roma to Brisbane Pipeline
A11: Selected here | B11: Model / RIN | C11: Reset | D11: dms_Model
A12: Read from Business & other details | B12: Source | C12: Regulatory proposal | D12: dms_Source
B13: Data quality | C13: Consolidated | D13: For DB purposes this is always Consoldiated
B14: Data status | C14: Public | D14: For DB purposes this is always Public
B15: Amendment reason | C15: =dms_Amendment_Text -> . | F15: dms_AmendmentReason
B16: Submission date | C16: =dms_Typed_Submission_Date -> 22/07/21 | D16: dms_SubmissionDate
A18: Redundant | B18: EBSS - First application of scheme in forthcoming period? | C18: No
A19: Pre-populated from lookup table | B19: Data ingestion data quality | C19: =dms_Selected_Quality -> Consolidated | D19: dms_DataQuality | E19: =IF(dms_DQ_2="Confidential","Consolidated","Public")
B20: Sector | C20: =INDEX(dms_Sector_List,MATCH(dms_TradingName,dms_TradingName_List)) -> Gas | D20: dms_Sector | E20: =INDEX(dms_Sector_List,MATCH(dms_TradingName,dms_TradingName_List))
B21: Segment | C21: =INDEX(dms_Segment_List,MATCH(dms_TradingName,dms_TradingName_List)) -> Transmission | D21: dms_Segment | E21: =INDEX(dms_Segment_List,MATCH(dms_TradingName,dms_TradingName_List))
B22: Regulatory Year Ending | C22: =dms_RYE_result -> 2027 | D22: dms_RYE | E22: =IF(dms_MultiYear_Flag=1,LEFT(dms_Specified_FinalYear,2)&RIGHT(dms_Specified_FinalYear,2),INDEX(dms_RYE_Formula_Result,MATCH(dms_Model,dms_Model_List)))
B23: Reporting Period Type | C23: =INDEX(dms_RPT_List,MATCH(dms_TradingName,dms_TradingName_List)) -> Financial | D23: dms_RPT | E23: =INDEX(dms_RPT_List,MATCH(dms_TradingName,dms_TradingName_List))
B24: EB/CA Unit of Measure for Monetary Values | C24: $0s | D24: dms_dollar_nom_UOM | E24: If the cover sheet is attached to an ABC RIN apply the NAMED RANGE to the cell
B25: Security Classification | C25: Public | D25: dms_Classification | E25: Always Public
B26: Jurisdiction | C26: =INDEX(dms_JurisdictionList,MATCH(dms_TradingName,dms_TradingName_List)) -> Qld | D26: dms_Jurisdiction | E26: =INDEX(dms_JurisdictionList,MATCH(dms_TradingName,dms_TradingName_List))
A27: Relevant for PTRM, RFMs and Reset RINS | B27: $ REAL REFERENCES
B28: Does the named range CRY exist in this file? | C28: =IFERROR(CRY,"NO") -> 2021-22
B29: CRY-1 (last full calendar year before CRY) | C29: =IFERROR(IF(dms_RPT="calendar",CRY-1,LEFT(CRY,4)),"CRY not present") -> 2021 | D29: dms_Cal_Year_B4_CRY | E29: '=IF(dms_RPT="financial",VALUE(LEFT(dms_SingleYear_FinalYear_Result,4)),VALUE(LEFT(dms_SingleYear_FinalYear_Result,4)-1))
B30: Dollar $ real month | C30: =INDEX(dms_RPTMonth_List,MATCH(dms_TradingName,dms_TradingName_List)) -> June | D30: dms_RPTMonth | E30: =INDEX(dms_RPTMonth_List,MATCH(dms_TradingName,dms_TradingName_List))
B31: Dollar $ real (the last month before the FRCP_y1) | C31: =IF(dms_SingleYearModel="yes",CONCATENATE(dms_RPTMonth)&" "&VALUE((LEFT(dms_CRY_start_year,4))),CONCATENATE(dms_RPTMonth)&" "&dms_DollarReal_year) -> June 2022 | D31: dms_DollarReal | E31: =IF(SUM(dms_SingleYear_Model)>0,CONCATENATE(dms_RPTMonth)&" "&VALUE((LEFT(CRY,2))&RIGHT(CRY,2)),CONCATENATE(dms_RPTMonth)&" "&VALUE((LEFT(dms_RYE,2)&RIGHT(dms_RYE,2))))
B32: Dollar $ real previous year (PRCP_y5) | C32: =CONCATENATE(dms_RPTMonth)&" "&dms_Previous_DollarReal_year -> June 2017 | D32: dms_DollarReal_Prev | E32: =IF(SUM(dms_SingleYear_Model)>0,CONCATENATE(dms_RPTMonth)&" "&VALUE(((LEFT(CRY,2))&RIGHT(CRY,2))-1),CONCATENATE(dms_RPTMonth)&" "&VALUE(((LEFT(dms_CRCP_FirstYear_Result,2)&RIGHT(dms_CRCP_FirstYear_Result,2))))-1)
B33: PTRM/ RFMs
B34: Form of control | C34: =INDEX(dms_FormControl_List,MATCH(dms_TradingName,dms_TradingName_List)) -> Weighted average price cap | D34: dms_FormControl | E34: =INDEX(dms_FormControl_List,MATCH(dms_TradingName,dms_TradingName_List))
A35: All potential values for Regulatory Years or RYEs as calculated | B35: This block works out the various RYE's for ALL RIN types and MODELS
B36: dms_start_year | C36: =FRCP_y1 -> 2022-23 | D36: =FRCP_y1 | E36: FRCP_y1 from cover sheet
B37: dms_CRY_start_year | C37: =IFERROR(CRY,CRCP_y4) -> 2021-22 | D37: =IFERROR(CRY,CRCP_y4)
B38: dms_CRY_start_row | C38: =IFERROR(MATCH(dms_CRY_start_year,INDIRECT(dms_RPT),0),0) -> 35 | D38: =IFERROR(MATCH(dms_CRY_start_year,INDIRECT(dms_RPT),0),0)
B39: dms_FRCP_start_row | C39: =MATCH(dms_start_year,INDIRECT(dms_RPT),0) -> 36 | D39: =MATCH(dms_start_year,INDIRECT(dms_RPT),0) | E39: Uses FRCP_y1 as a start reference
B40: dms_CRCP_start_row | C40: =dms_FRCP_start_row-dms_CRCPlength_Num -> 31 | D40: =dms_FRCP_start_row-dms_CRCPlength_Num | E40: Uses the value in dms_CRCPlength_Num
B41: dms_PRCP_start_row | C41: =dms_FRCP_start_row-dms_CRCPlength_Num-dms_PRCPlength_Num -> 26 | D41: =dms_FRCP_start_row-dms_CRCPlength_Num-dms_PRCPlength_Num | E41: Uses the value in dms_CRCPlength_Num and dms_PRCPlength_Num
B42: dms_RYE_start_row | C42: =dms_FRCP_start_row+(dms_FRCPlength_Num-1) -> 40 | D42: =dms_FRCP_start_row+(dms_FRCPlength_Num-1) | E42: Uses the value in dms_FRCPlength_Num-1
B43: FRCP_start_year | C43: =INDEX(INDIRECT(dms_RPT),dms_FRCP_start_row) -> 2022-23 | D43: =INDEX(INDIRECT(dms_RPT),dms_FRCP_start_row) | E43: Converts the FRCP start row to display the year
B44: CRCP_start_year | C44: =INDEX(INDIRECT(dms_RPT),dms_CRCP_start_row) -> 2017-18 | D44: =INDEX(INDIRECT(dms_RPT),dms_CRCP_start_row) | E44: Converts the CRCP start row to display the year
B45: PRCP_start_year | C45: =INDEX(INDIRECT(dms_RPT),dms_PRCP_start_row) -> 2012-13 | D45: =INDEX(INDIRECT(dms_RPT),dms_PRCP_start_row) | E45: Converts the PRCP start row to display the year
B46: FRCP_final_year | C46: =INDEX(INDIRECT(dms_RPT),dms_FRCP_start_row+dms_FRCPlength_Num-1) -> 2026-27 | D46: =INDEX(INDIRECT(dms_RPT),dms_FRCP_start_row+dms_FRCPlength_Num-1) | E46: Finds the FRCP final year
B47: CRCP_final_year | C47: =INDEX(INDIRECT(dms_RPT),dms_CRCP_start_row+dms_CRCPlength_Num-1) -> 2021-22 | D47: =INDEX(INDIRECT(dms_RPT),dms_CRCP_start_row+dms_CRCPlength_Num-1) | E47: Finds the CRCP final year
B48: PRCP_final_year | C48: =INDEX(INDIRECT(dms_RPT),dms_PRCP_start_row+dms_FRCPlength_Num-1) -> 2016-17 | D48: =INDEX(INDIRECT(dms_RPT),dms_PRCP_start_row+dms_FRCPlength_Num-1) | E48: Finds the PRCP final year
B49: dms_Reset_final_year | C49: =INDEX(INDIRECT(dms_RPT),dms_RYE_start_row) -> 2026-27 | D49: =INDEX(INDIRECT(dms_RPT),dms_RYE_start_row) | E49: For Resets and PTRM/RFMs (same as FRCP_final_year)
B50: dms_SpecifiedYear_final_year | C50: =FRY -> 2025-26 | D50: =FRY | E50: FRY from cover sheet
B51: dms_DollarReal_year | C51: =LEFT(CRCP_final_year,2)&RIGHT(CRCP_final_year,2) -> 2022 | D51: =LEFT(CRCP_final_year,2)&RIGHT(CRCP_final_year,2) | E51: Uses the value in CRCP_final_year
B52: dms_Previous_DollarReal_year | C52: =LEFT(PRCP_final_year,2)&RIGHT(PRCP_final_year,2) -> 2017 | D52: =LEFT(PRCP_final_year,2)&RIGHT(PRCP_final_year,2) | E52: Uses the value in PRCP_final_year
B53: dms_CRY_RYE | C53: =IFERROR(LEFT(CRY,2)&RIGHT(CRY,2),0) -> 2022 | D53: =IFERROR(LEFT(CRY,2)&RIGHT(CRY,2),0) | E53: For ABC single year RINS
B54: dms_Reset_RYE | C54: =IF(dms_Model_Span>1,IF(dms_Model="RFM",(LEFT(dms_DollarReal_year,2)&RIGHT(dms_DollarReal_year,2)),(LEFT(dms_Reset_final_year,2)&RIGHT(dms_Reset_final_year,2))),0) -> 2027 | D54: =IF(dms_Model_Span>1,IF(dms_Model="RFM",(LEFT(dms_DollarReal_year,2)&RIGHT(dms_DollarReal_year,2)),(LEFT(dms_Reset_final_year,2)&RIGHT(dms_Reset_final_year,2))),0) | E54: If model span > 1 then uses dms_Reset_RYE otherwise it's a multi year ABC and uses dms_Specified_RYE
B55: dms_Specified_RYE | C55: =IF(dms_MultiYear_ResponseFlag="Yes",(LEFT(dms_Specified_FinalYear,2)&RIGHT(dms_Specified_FinalYear,2)),0) -> 0 | D55: =IF(dms_MultiYear_ResponseFlag="Yes",(LEFT(dms_Specified_FinalYear,2)&RIGHT(dms_Specified_FinalYear,2)),0) | E55: If multi year ABC - uses dms_Specified_FinalYear
B56: dms_Model_Span | C56: =INDEX(dms_Model_Span_List,MATCH(dms_Model,dms_Model_List)) -> 5 | D56: =INDEX(dms_Model_Span_List,MATCH(dms_Model,dms_Model_List)) | E56: A result of 5 is used to signify that it is more than 1 year span
B57: dms_RYE_result | C57: =IF(dms_MultiYear_ResponseFlag="yes",dms_Specified_RYE,(IF(dms_Model_Span>1,dms_Reset_RYE,dms_CRY_RYE))) -> 2027 | D57: =IF(dms_MultiYear_ResponseFlag="yes",dms_Specified_RYE,(IF(dms_Model_Span>1,dms_Reset_RYE,dms_CRY_RYE))) | E57: Nested IF - feeds into dms_RYE
B58: dms_Reset_Span | C58: =IF(dms_Reset_RYE>0,CONCATENATE(FRCP_y1," to ",FRCP_final_year),0) -> 2022-23 to 2026-27 | D58: =IF(dms_Reset_RYE>0,CONCATENATE(FRCP_y1," to ",FRCP_final_year),0) | E58: Reset span of years as text
B59: dms_SpecifiedYear_Span | C59: =IF(dms_Specified_RYE>0,CONCATENATE(CRY," to ",dms_Specified_FinalYear),0) -> 0 | D59: =IF(dms_Specified_RYE>0,CONCATENATE(CRY," to ",dms_Specified_FinalYear),0) | E59: Multi year ABC span of years as text
B60: dms_Header_Span | C60: =IF(dms_MultiYear_Flag=1,dms_SpecifiedYear_Span,IF(dms_Model_Span>1,dms_y1&" - "&FRCP_final_year,CRY)) -> 2021-22 - 2026-27 | D60: =IF(dms_MultiYear_Flag=1,dms_SpecifiedYear_Span,IF(dms_Model_Span>1,dms_Reset_Span,CRY)) | E60: NESTED IF - for Sheet Headers
B61: ABC RINS THAT SPAN MULTIPLE YEARS
B62: This is a multi year ABC RIN? | C62: No
C63: =IF(dms_MultiYear_ResponseFlag="No",0,1) -> 0 | D63: dms_MultiYear_Flag | E63: This is set from the answer provided above
C64: =IF(dms_MultiYear_Flag=1,FRY,"not a Multiple year submission") -> not a Multiple year submission | D64: dms_Specified_FinalYear | E64: The result here is returned to dms_CRCP_FinalYear_Result if response to Q in C73 is "yes" and dms_MultiYear_Flag is set to 1
B65: Start year for 5.2 in Multi year ABC RINS | C65: =IFERROR(IF(dms_MultiYear_Flag=1,FRY,CRY),"not an ABC") -> 2021-22 | D65: dms_0502_Inst_Year | E65: =IF(dms_MultiYear_Flag=1,FRY,CRY) | G65: For single year RINS this is CRY - multi year RINS need to start a the end of the span of years (ie. FRY)
B66: WHAT IS THE RYE?
B67: Reg Period Lengths
B68: PRCP length in years | C68: =INDEX(dms_PRCPlength_List,MATCH(dms_TradingName,dms_TradingName_List)) -> 5 | D68: dms_PRCPlength_Num | E68: =INDEX(dms_PRCPlength_List,MATCH(dms_TradingName,dms_TradingName_List))
B69: CRCP length in years | C69: =INDEX(dms_CRCPlength_List,MATCH(dms_TradingName,dms_TradingName_List)) -> 5 | D69: dms_CRCPlength_Num | E69: =INDEX(dms_CRCPlength_List,MATCH(dms_TradingName,dms_TradingName_List))
B70: FRCP length in years | C70: =INDEX(dms_FRCPlength_List,MATCH(dms_TradingName,dms_TradingName_List)) -> 5 | D70: dms_FRCPlength_Num | E70: =INDEX(dms_FRCPlength_List,MATCH(dms_TradingName,dms_TradingName_List))
B71: Single year RIN?
B72: Single Year ABC RIN ? | C72: =IF(dms_Model="EB",1,0) -> 0 | D72: dms_EB
C73: =IF(dms_Model="CA",1,0) -> 0 | D73: dms_CA | E73: =dms_SingleYear_Model
C74: =IF(dms_Model="ARR",1,0) -> 0 | D74: dms_ARR
B75: Is this a single Year ABC RIN? | C75: =IF(SUM(dms_SingleYear_Model)=1,"yes","no") -> no | D75: dms_SingleYearModel | E75: =IF(SUM(dms_SingleYear_Model)=1,"yes","no")
B76: Single Year Final Year Result | C76: =IF(AND(dms_SingleYearModel="yes",dms_MultiYear_Flag=0),CRY,0) -> 0 | D76: dms_SingleYear_FinalYear_Result | E76: =IFERROR(IF(SUM(dms_SingleYear_Model)<>0,(INDIRECT(dms_SingleYear_FinalYear_Ref)),"not a single year RIN"),"CRY not present")
B77: Multi year RIN?
B79: Multi Year Reset/Model? | C79: =IF(dms_Model_Span>1,"yes","no") -> yes
B80: Final year result for Reset/Model | C80: =IF(dms_Model_Span>1,dms_Reset_final_year,0) -> 2026-27 | D80: dms_MultiYear_FinalYear_Result | E80: dms_CRCP_FinalYear_Result
B82: Multi Year ABC RIN? | C82: =IF(dms_MultiYear_Flag=1,"yes","no") -> no | D82: dms_MultiYear_ABC_RIN
B83: Final year result for ABC multi year | C83: =IF(dms_MultiYear_Flag=1,C50,0) -> 0
B85: EB RINS
B86: Calendar Year for table 3.6 data | C86: =IFERROR(IF(dms_Segment="Transmission",dms_Cal_Year_B4_CRY,CRY),"CRY not present") -> 2021 | D86: dms_0306_Year | E86: =IF(dms_Segment="Transmission",dms_Cal_Year_B4_CRY,CRY)
B87: CA RINS
B88: Find how many rows in tables 6.3 sustained interruptions? | E88: dms_060301_MaxRows only returns a valid value when cover sheet is attached to a CA file
C89: =IF(dms_Model<>"CA","not a CA","Is a CA") -> not a CA | E89: =IF(dms_Model<>"CA","not a CA","Is a CA")
B90: dms_060301_Avg_Duration_Sustained_Int_Values present? | C90: =IFERROR(IF(INDEX(dms_060301_Avg_Duration_Sustained_Int_Values,1,1)<>"","yes","no"),"no") -> no | D90: dms_060301_checkvalue | E90: =IFERROR(IF(INDEX(dms_060301_Avg_Duration_Sustained_Int_Values,1,1)<>"","yes","no"),"no")
C91: =IF(AND(dms_Model="CA",(dms_060301_checkvalue="no")),"error - NR not present","no errors") -> no errors | E91: =IF(AND(dms_Model="CA",(dms_060301_checkvalue="no")),"error - NR not present","no errors")
B92: Table 6.3.1 - last row reference | C92: =IFERROR(IF(dms_Model="CA",LOOKUP(2,1/(dms_060301_Avg_Duration_Sustained_Int_Values<>""),(ROW(dms_060301_Avg_Duration_Sustained_Int_Values))),"not a CA"),"6.3 not present") -> not a CA | D92: dms_060301_LastRow | E92: =IFERROR(IF(dms_Model="CA",LOOKUP(2,1/(dms_060301_Avg_Duration_Sustained_Int_Values<>""),(ROW(dms_060301_Avg_Duration_Sustained_Int_Values))),"not a CA"),"6.3 not present")
B93: Table 6.3.1 - max number rows | C93: =IFERROR(IF(dms_Model="CA",(dms_060301_LastRow-15),"not a CA"),"error") -> not a CA | D93: dms_060301_MaxRows | E93: =IFERROR(IF(dms_Model="CA",(dms_060301_LastRow-15),"not a CA"),"error")
B94: Table 6.6.3 - Public lighting repair - no. business days | C94: =INDEX(dms_663_List,MATCH(dms_TradingName,dms_TradingName_List)) -> x | D94: dms_663 | E94: =INDEX(dms_663_List,MATCH(dms_TradingName,dms_TradingName_List))
B95: ARR or RESET RINS
B96: How many rows in tables 6.1 or 6.7? (leap year?) | C96: insert dms_LeapYear NR if required | E96: 'dms_LeapYear is used to determine dms_060701_Max_Rows BUT it is only found on worksheet 6.1 or 6.7 and the date value in the cell is used to determine whether it is a leap year
B97: Is dms_LeapYear named range present? | C97: =IFERROR(IF(dms_LeapYear,"yes"),"no") -> no
B98: Table 6.7.1 - includes a leap year? | C98: =IFERROR(IF(MONTH(DATE(YEAR(dms_LeapYear),2,29))=2,"is a leap year","not a leap year"), "dms_LeapYear not present") -> dms_LeapYear not present | D98: dms_LeapYear_Result | E98: =IFERROR(IF(MONTH(DATE(YEAR(dms_LeapYear),2,29))=2,"is a leap year","not a leap year"),"dms_LeapYear not present")
B99: MaxRows if Reset and leap year | C99: =IF(dms_LeapYear_Result="is a leap year",1827,1826) -> 1826 | D99: dms_060701_Reset_MaxRows | E99: =IF(dms_LeapYear_Result="is a leap year",1827,1826) | H99: number of days present in Reset RIN table
B100: MaxRows if ARR and leap year | C100: =IF(dms_LeapYear_Result="is a leap year",366,365) -> 365 | D100: dms_060701_ARR_MaxRows | E100: =IF(dms_LeapYear_Result="is a leap year",366,365) | H100: number of days present in ARR RIN table
B101: Table 6.7.1 - Max Rows (leap year/ non leap year) | C101: =IF(dms_Model="ARR",dms_060701_ARR_MaxRows,IF(dms_Model="Reset",dms_060701_Reset_MaxRows,"not a relevant RIN type")) -> 1826 | D101: dms_060701_MaxRows | E101: =IF(dms_Model="ARR",dms_060701_ARR_MaxRows,IF(dms_Model="Reset",dms_060701_Reset_MaxRows,"not a relevant RIN type"))
B102: How many columns in 6.7? (4 or 5 feeder categories) | C102: =IF(dms_FifthFeeder_flag_NSP="NO","This NSP has only 4 feeder categories","This NSP has 5 feeder categories") -> This NSP has only 4 feeder categories
B103: Table 6.7.1 - Last column (# of feeder categories > 4) | C103: =IF(dms_FifthFeeder_flag_NSP="NO",10,12) -> 10 | D103: dms_060701_MaxCols | E103: =IF(dms_FifthFeeder_flag_NSP="NO",8,10)
B104: Table 6.7.1 - Number of offset rows | C104: =IF(dms_Model="ARR",15,9) -> 9 | D104: dms_060701_OffsetRows | E104: =IF(dms_Model="ARR",15,9)
B105: Start date for telephone answering in 6.1 or 6.7? | E105: Using 060101 as naming standard not 060701 for start dates
B106: Table 6.1.1 and 6.7.1 - Start Date as Text | C106: =IF(dms_SingleYearModel="yes",(CONCATENATE(IF(LEN(CRY)=4,"1-Jan-","1-Jul-"),LEFT(CRY,4))),(CONCATENATE(IF(LEN(PRCP_y4)=4,"1-Jan-","1-Jul-"),LEFT(PRCP_y4,4)))) -> 1-Jul-2015 | D106: dms_060101_StartDateTxt | E106: =IF(SUM(dms_SingleYear_Model)>1,(CONCATENATE(IF(LEN(CRY)=4,"1-Jan-","1-Jul-"),LEFT(CRY,4))),(CONCATENATE(IF(LEN(CRCP_y4)=4,"1-Jan-","1-Jul-"),LEFT(CRCP_y4,4))))
B107: Table 6.1.1 and 6.7.1 - Start Date as Date Value | C107: =DATEVALUE(dms_060701_StartDateTxt) -> 42186 | D107: dms_060101_StartDateVal | E107: =DATEVALUE(dms_060701_StartDateTxt)
B108: ARRs
B109: How many rows in table 6.8? | C109: insert dms_060801_StartCell NR if required | E109: dms_060801_StartCell is only found on worksheet 6.8 and is used to determine the starting date for the date range
B110: Is dms_060801_StartCell named range present? | C110: yes | E110: =IFERROR(IF((ROW(dms_060801_StartCell)-1)=1,"yes","yes"),"no")
B111: Table 6.8 - Number of offset rows | C111: 12 | D111: dms_0608_OffsetRows | E111: =IFERROR(IF(dms_Model="ARR",(ROW(dms_060801_StartCell)-1),"not an ARR"),"6.8 error")
B112: Table 6.8 - Last row | C112: 0 | D112: dms_0608_LastRow | E112: =IFERROR(IF(dms_060801_StartCell<>"",IF(dms_Model="ARR",(LOOKUP(2,1/(dms_060801_01_Values<>""),(ROW(dms_060801_01_Values)))),"not an ARR"),0),"0")
B113: Table 6.8 - MaxRows | C113: =IFERROR(IF(dms_Model="ARR",(MAX(0,dms_0608_LastRow-dms_0608_OffsetRows)),"not an ARR"),"0") -> not an ARR | D113: dms_060801_MaxRows | E113: =IFERROR(IF(dms_Model="ARR",(MAX(0,dms_0608_LastRow-dms_0608_OffsetRows)),"not an ARR"),"0")
B114: TNSP RESET RINS
B115: Table 7.9.4 only appears in TNSPs Reset RIN
B116: Table 7.9.4 - first year | C116: =LEFT(PRCP_y3,4) -> 2014 | D116: dms_070904_Start_Year | E116: =LEFT(PRCP_y3,4)
B118: MISC
B119: Distribution Determination Reference | C119: =INDEX(dms_DeterminationRef_List,MATCH(dms_TradingName,dms_TradingName_List)) -> n/a | D119: dms_DeterminationRef
B120: Public lighting NSP? | C120: =INDEX(dms_Public_Lighting_List,MATCH(dms_TradingName,dms_TradingName_List)) -> NO | D120: dms_Public_Lighting | E120: =INDEX(dms_Public_Lighting_List,MATCH(dms_TradingName,dms_TradingName_List))
B121: CBD Feeder for this business | C121: =INDEX(dms_CBD_flag,MATCH(dms_TradingName,dms_TradingName_List)) -> NO | D121: dms_CBD_flag_NSP
B122: Urban Feeder for this business | C122: =INDEX(dms_Urban_flag,MATCH(dms_TradingName,dms_TradingName_List)) -> NO | D122: dms_Urban_flag_NSP
B123: Short rural Feeder for this business | C123: =INDEX(dms_ShortRural_flag,MATCH(dms_TradingName,dms_TradingName_List)) -> NO | D123: dms_ShortRural_flag_NSP
B124: Long rural Feeder for this business | C124: =INDEX(dms_LongRural_flag,MATCH(dms_TradingName,dms_TradingName_List)) -> NO | D124: dms_LongRural_flag_NSP
B125: Fifth Feeder Category (eg. TasNetworks (D)) | C125: =INDEX(dms_FeederType_5_flag,MATCH(dms_TradingName,dms_TradingName_List)) -> NO | D125: dms_FifthFeeder_flag_NSP | E125: =INDEX(dms_FeederType_5_flag,MATCH(dms_TradingName,dms_TradingName_List))
B127: DISCARD FILES
B128: discard this record? | C128: NO | D128: dms_DISCARD | E128: If record is to be discarded from DB set this flag to YES
B130: SUBSET FILES
B131: Is this Submission File a Subset File | C131: NO | D131: dms_Partial
B134: REGULATORY YEARS FOR MULTI RYE SUBMISSIONS
B135: Multiple RYE flag | C135: NO | D135: dms_Multi_RYE_flag
C136: Manually specify RYE | D136: Named ranges to apply
C137: 2013 | D137: dms_RYE_01
C138: 2014 | D138: dms_RYE_02
C139: 2015 | D139: dms_RYE_03
C140: 2016 | D140: dms_RYE_04
C141: 2017 | D141: dms_RYE_05
C142: 2018 | D142: dms_RYE_06
C143: 2019 | D143: dms_RYE_07
C144: 2020 | D144: dms_RYE_08
C145: 2021 | D145: dms_RYE_09

Sheet Business & other details
V1: =INDEX(dms_Worksheet_List,MATCH(dms_Model,dms_Model_List)) -> REGULATORY REPORTING STATEMENT | CP1: DECEMBER 2020
V2: =INDEX(dms_TradingNameFull_List,MATCH(dms_TradingName,dms_TradingName_List)) -> APT Petroleum Pipelines Limited t/a Roma to Brisbane Pipeline
V4: BUSINESS & OTHER DETAILS
V6: INSTRUCTIONS
V7: Complete the following business details regulatory template before entering data or values in any other regulatory template. This regulatory template is linked to other cells within the spreadsheet and automatically generates column headings and conditional formatting to distinguish business specific input and non-input cells.
Q9: SUBMISSION PARTICULARS INPUT SHEET
V12: ENTITY DETAILS
V14: Business Name
V16: Short name | AL16: Roma to Brisbane Pipeline
V17: ACN/ABN | AL17: =INDEX(dms_ABN_List,MATCH(dms_TradingName,dms_TradingName_List)) -> 009 737 393
V21: Business Address | BQ21: Postal Address
V23: Address 1 | AL23: =INDEX(dms_Addr1_List,MATCH(dms_TradingName,dms_TradingName_List)) -> 580 George Street | BI23: Address 1 | BQ23: =INDEX(dms_PAddr1_List,MATCH(dms_TradingName,dms_TradingName_List)) -> PO Box R41
V24: Address 2 | AL24: =IF(ISBLANK(INDEX(dms_Addr2_List,MATCH(dms_TradingName,dms_TradingName_List))),"",(INDEX(dms_Addr2_List,MATCH(dms_TradingName,dms_TradingName_List)))) ->  | BI24: Address 2 | BQ24: =IF(ISBLANK(INDEX(dms_PAddr2_List,MATCH(dms_TradingName,dms_TradingName_List))),"",(INDEX(dms_PAddr2_List,MATCH(dms_TradingName,dms_TradingName_List)))) -> 
V25: Suburb | AL25: =INDEX(dms_Suburb_List,MATCH(dms_TradingName,dms_TradingName_List)) -> SYDNEY | BI25: Suburb | BQ25: =INDEX(dms_PSuburb_List,MATCH(dms_TradingName,dms_TradingName_List)) -> ROYAL EXCHANGE
V26: State | AL26: =INDEX(dms_State_List,MATCH(dms_TradingName,dms_TradingName_List)) -> NSW | AV26: Post code | BI26: State | BQ26: =INDEX(dms_PState_List,MATCH(dms_TradingName,dms_TradingName_List)) -> NSW | CA26: Post code
BA28: `
V30: Contact Names
V32: Name | BI32: Name
V33: Phone | BI33: Phone
V34: Email | BI34: Email
Q39: REGULATORY CONTROL PERIODS
Z42: Forthcoming period | AL42: 2022-23 | AU42: =FRCP_y2 -> 2023-24 | BD42: =FRCP_y3 -> 2024-25 | BM42: =FRCP_y4 -> 2025-26 | BV42: =FRCP_y5 -> 2026-27
AL43: =FRCP_y6 -> 2027-28 | AU43: =FRCP_y7 -> 2028-29 | BD43: =FRCP_y8 -> 2029-30 | BM43: =FRCP_y9 -> 2030-31 | BV43: =FRCP_y10 -> 2031-32
AL44: =FRCP_y11 -> 2032-33 | AU44: =FRCP_y12 -> 2033-34 | BD44: =FRCP_y13 -> 2034-35 | BM44: =FRCP_y14 -> 2035-36 | BV44: =FRCP_y15 -> 2036-37
X46: RESETS | Z46: Current period | AL46: =CRCP_y1 -> 2017-18 | AU46: =CRCP_y2 -> 2018-19 | BD46: =CRCP_y3 -> 2019-20 | BM46: =CRCP_y4 -> 2020-21 | BV46: =CRCP_y5 -> 2021-22
AL47: =CRCP_y6 -> 2022-23 | AU47: =CRCP_y7 -> 2023-24 | BD47: =CRCP_y8 -> 2024-25 | BM47: =CRCP_y9 -> 2025-26 | BV47: =CRCP_y10 -> 2026-27
AL48: =CRCP_y11 -> 2027-28 | AU48: =CRCP_y12 -> 2028-29 | BD48: =CRCP_y13 -> 2029-30 | BM48: =CRCP_y14 -> 2030-31 | BV48: =CRCP_y15 -> 2031-32
Z50: Previous period | AL50: =PRCP_y1 -> 2012-13 | AU50: =PRCP_y2 -> 2013-14 | BD50: =PRCP_y3 -> 2014-15 | BM50: =PRCP_y4 -> 2015-16 | BV50: =PRCP_y5 -> 2016-17
AL51: =PRCP_y6 -> 2017-18 | AU51: =PRCP_y7 -> 2018-19 | BD51: =PRCP_y8 -> 2019-20 | BM51: =PRCP_y9 -> 2020-21 | BV51: =PRCP_y10 -> 2021-22
AL52: =PRCP_y11 -> 2022-23 | AU52: =PRCP_y12 -> 2023-24 | BD52: =PRCP_y13 -> 2024-25 | BM52: =PRCP_y14 -> 2025-26 | BV52: =PRCP_y15 -> 2026-27
Z54: Commencing year | AL54: 2021-22
X55: ANNUAL RINS
Z56: Final year | AL56: 2025-26
Q60: SUBMISSION DETAILS
Z62: RIN type | AL62: =INDIRECT(dms_Model) -> Regulatory Reporting (Reset)
Z64: Source | AL64: Regulatory proposal
X66: THIS FILE | Z66: Data Quality | AL66: Consolidated
Z68: Confidentiality Status | AL68: Public
Z70: Amended RIN Amendment Reason | AL70: .
Z74: Submission Date | AL74: 22/07/21 | BD74: Please enter date this file submitted to AER

Sheet Indicative bill impact
B1: =IF(dms_DataQuality="backcast",INDEX(dms_Worksheet_List,MATCH(dms_Model,dms_Model_List))&" BACKCAST",INDEX(dms_Worksheet_List,MATCH(dms_Model,dms_Model_List))) -> REGULATORY REPORTING STATEMENT
B2: =INDEX(dms_TradingNameFull_List,MATCH(dms_TradingName,dms_TradingName_List)) -> APT Petroleum Pipelines Limited t/a Roma to Brisbane Pipeline
B4: INDICATIVE IMPACT OF THE REGULATORY PROPOSAL ON THE AVERAGE GAS BILL
B6: 1 - TYPICAL GAS BILL
B8: A. ANNUAL USAGE PER CUSTOMER
D9: MJ
D10: =CRCP_y5 -> 2021-22
B11: Residential customer | D11: 7873
B12: Small business customer | D12: 100000
B13: Source(s) of data: | C13: Residential: AER Annual Retail Markets Report 2019-20; ACIL Allen, Energy benchmarks report 2017 Small Business: Alviss Consulting & Energy Consumers Australia, Analysis of small business retail energy bills in Australia, Final Report, December 2020
B16: B. TYPICAL ANNUAL GAS BILL
C17: Tariff type | D17: =CONCATENATE("($ real, ", dms_DollarReal, ")") -> ($ real, June 2022)
B18: Residential customer | D18: =0.5*(615+680)*(1+0.0111492281303602)*(1+0.0242487465753967) -> 670.5952434
B19: Small business customer | D19: =AVERAGE(3171,3565,3940,4428)*((1+0.0111492281303602)^(8/12))*(1+0.0242487465753967) -> 3896.257009
B20: Source(s) of data: | C20: Residential: Median market off for low and average income households in 2020, average of AGN and Allgas Energy networks. AER Annual Retail Markets Report 2019-20 Small Business: Average of AGL & Origin customers for Brisbane North and Brisbane South regsions. Alviss Consulting & Energy Consumers Australia, Analysis of small business retail energy bills in Australia Final Report, December 2020
B23: C. TRANSMISSION COSTS AS A PROPORTION OF A TYPICAL CUSTOMER'S GAS BILL
D24: Proportion (%)
D25: =CRCP_y5 -> 2021-22
B26: Residential customer | D26: 0.03376962863
B27: Small business customer | D27: 0.03376962863
B28: Source(s) of data: | C28: Oakley Greenwood, Gas Price Trends Review 2017
B31: 2 - INDICATIVE ANNUAL AVERAGE TRANSMISSION PRICE IMPACT
D32: =CRCP_y5 -> 2021-22 | E32: =FRCP_y1 -> 2022-23 | F32: =FRCP_y2 -> 2023-24 | G32: =FRCP_y3 -> 2024-25 | H32: =FRCP_y4 -> 2025-26 | I32: =FRCP_y5 -> 2026-27 | J32: Annual Average
B33: Forecast inflation (per cent) | E33: 0.0199938725 | F33: =+$E$33 -> 0.0199938725 | G33: =+$E$33 -> 0.0199938725 | H33: 0.0199938725 | I33: 0.0199938725
B35: Forecast X factors (per cent) | E35: 0.0572631069 | F35: -0.08436025168 | G35: -0.08436025168 | H35: -0.08436025168 | I35: -0.08436025168
B37: Annual price path (index, nominal) | D37: 1 | E37: =D37*(1+E33)*(1-E35) -> 0.9615858543 | F37: =E37*(1+F33)*(1-F35) -> 1.063553199 | G37: =F37*(1+G33)*(1-G35) -> 1.176333245 | H37: =G37*(1+H33)*(1-H35) -> 1.301072577 | I37: =H37*(1+I33)*(1-I35) -> 1.43903937
B38: Annual price path (per cent, nominal) | E38: =E37/D37-1 -> -0.03841414565 | F38: =F37/E37-1 -> 0.1060408123 | G38: =G37/F37-1 -> 0.1060408123 | H38: =H37/G37-1 -> 0.1060408123 | I38: =I37/H37-1 -> 0.1060408123 | J38: =(I37/D37)^(1/5)-1 -> 0.07551020406
B40: =CONCATENATE("Annual price path (index, real ",dms_DollarReal,")") -> Annual price path (index, real June 2022) | D40: 1 | E40: =D40*(1-E35) -> 0.9427368931 | F40: =E40*(1-F35) -> 1.022266415 | G40: =F40*(1-G35) -> 1.108505067 | H40: =G40*(1-H35) -> 1.202018833 | I40: =H40*(1-I35) -> 1.303421444
B41: =CONCATENATE("Annual price path (per cent, real ",dms_DollarReal,")") -> Annual price path (per cent, real June 2022) | E41: =E40/D40-1 -> -0.0572631069 | F41: =F40/E40-1 -> 0.08436025168 | G41: =G40/F40-1 -> 0.08436025168 | H41: =H40/G40-1 -> 0.08436025168 | I41: =I40/H40-1 -> 0.08436025168 | J41: =(I40/D40)^(1/5)-1 -> 0.054428103
B43: 3 - Transmission BILL COMPONENT
B44: Residential customer
D45: =CRCP_y5 -> 2021-22 | E45: =FRCP_y1 -> 2022-23 | F45: =FRCP_y2 -> 2023-24 | G45: =FRCP_y3 -> 2024-25 | H45: =FRCP_y4 -> 2025-26 | I45: =FRCP_y5 -> 2026-27 | J45: ="Total "&E45&" to "&I45&"" -> Total 2022-23 to 2026-27 | K45: Annual Average | L45: Average annual impact on total bill (%)
B46: Transmission charges bill component ($, nominal) | D46: =D18*$D$26 -> 22.64575233 | E46: =D46*(1+E$38) -> 21.7758351 | F46: =E46*(1+F$38) -> 24.08496234 | G46: =F46*(1+G$38) -> 26.63895132 | H46: =G46*(1+H$38) -> 29.46376735 | I46: =H46*(1+I$38) -> 32.58812918 | K46: =+AVERAGE(E46:I46) -> 26.91032906
B47: Annual change ($, nominal) | E47: =+E46-D46 -> -0.8699172285 | F47: =+F46-E46 -> 2.309127243 | G47: =+G46-F46 -> 2.553988971 | H47: =+H46-G46 -> 2.824816036 | I47: =+I46-H46 -> 3.124361823 | J47: =+SUM(E47:I47) -> 9.942376845 | K47: =+AVERAGE(E47:I47) -> 1.988475369 | L47: =K47/D18 -> 0.002965239299
B48: =CONCATENATE("Transmission charges bill component ($, real ",dms_DollarReal,")") -> Transmission charges bill component ($, real June 2022) | D48: =D18*$D$26 -> 22.64575233 | E48: =D48*(1+E$41) -> 21.34898619 | F48: =E48*(1+F$41) -> 23.14999204 | G48: 25.1029312 | H48: 27.22062079 | I48: 29.51695921 | K48: =+AVERAGE(E48:I48) -> 25.26789789
B49: =CONCATENATE("Annual change ($, real ",dms_DollarReal,")") -> Annual change ($, real June 2022) | E49: =+E48-D48 -> -1.296766137 | F49: =+F48-E48 -> 1.801005848 | G49: =+G48-F48 -> 1.952939155 | H49: =+H48-G48 -> 2.117689594 | I49: =+I48-H48 -> 2.296338421 | J49: =+SUM(E49:I49) -> 6.871206881 | K49: =+AVERAGE(E49:I49) -> 1.374241376 | L49: =K49/D18 -> 0.002049285899
B51: Small Business customer
D52: =CRCP_y5 -> 2021-22 | E52: =FRCP_y1 -> 2022-23 | F52: =FRCP_y2 -> 2023-24 | G52: =FRCP_y3 -> 2024-25 | H52: =FRCP_y4 -> 2025-26 | I52: =FRCP_y5 -> 2026-27 | J52: ="Total "&E52&" to "&I52&"" -> Total 2022-23 to 2026-27 | K52: Annual Average | L52: Average annual impact on total bill (%)
B53: Transmission charges bill component ($, nominal) | D53: =D19*$D$27 -> 131.5751523 | E53: =D53*(1+E$38) -> 126.5208052 | F53: =E53*(1+F$38) -> 139.9371741 | G53: =F53*(1+G$38) -> 154.7762258 | H53: =G53*(1+H$38) -> 171.1888225 | I53: =H53*(1+I$38) -> 189.3418243 | K53: =+AVERAGE(E53:I53) -> 156.3529704
B54: Annual change ($, nominal) | E54: =+E53-D53 -> -5.054347063 | F54: =+F53-E53 -> 13.41636896 | G54: =+G53-F53 -> 14.83905162 | H54: =+H53-G53 -> 16.4125967 | I54: =+I53-H53 -> 18.15300179 | J54: =+SUM(E54:I54) -> 57.766672 | K54: =+AVERAGE(E54:I54) -> 11.5533344 | L54: =K54/D19 -> 0.002965239299
B55: =CONCATENATE("Transmission charges bill component ($, real ",dms_DollarReal,")") -> Transmission charges bill component ($, real June 2022) | D55: =D19*$D$27 -> 131.5751523 | E55: =D55*(1+E$41) -> 124.0407502 | F55: =E55*(1+F$41) -> 134.5048592 | G55: 145.8517229 | H55: =G55*(1+H$41) -> 158.155811 | I55: 171.497875 | K55: =+AVERAGE(E55:I55) -> 146.8102037
B56: =CONCATENATE("Annual change ($, real ",dms_DollarReal,")") -> Annual change ($, real June 2022) | E56: =+E55-D55 -> -7.534402009 | F56: =+F55-E55 -> 10.46410891 | G56: =+G55-F55 -> 11.34686377 | H56: =+H55-G55 -> 12.30408805 | I56: =+I55-H55 -> 13.34206402 | J56: =+SUM(E56:I56) -> 39.92272274 | K56: =+AVERAGE(E56:I56) -> 7.984544548 | L56: =K56/D19 -> 0.002049285899
